Workbook

Sheet Instruções
A1: http://authenticator.sapphirebusinesstech.com:8080/access/v1/validate
A2: 123456789
A3: contact@sapphirebusinesstech.com
A5: 200
A7: =IF(A12="",0,TODAY()-A12) -> 0
C10: Any use for this file other than sample using and technical analysis without authorization is stricly prohibited and protected by copyright
C11: Qualquer uso desse arquivo sem autorização outro que uso de exemplo e análise técnica é extritamente proibida e protegida por direitos autorais.
C12: Cualquier uso de este archivo sin autorización que no sea para fines de ejemplo o análisis técnico está estrictamente prohibido y está protegido por derechos de autor.
C15: MANUAL DE UTILIZAÇÃO
D17: 1. OBJETIVO DA PLANILHA
C18: • | D18: Sistema completo de gestão de projetos, tarefas e cronogramas construído apenas com recursos nativos do Excel 2019: Tabelas Estruturadas, Validação de Dados, Formatação Condicional, Segmentações, Gráficos, Tabelas Dinâmicas e funções (PROCV, ÍNDICE/CORRESP, SOMASES, CONT.SES, MÉDIASES). Não utiliza VBA, macros, Power Query nem Power Pivot.
C19: • | D19: Atende desde projetos pessoais até projetos empresariais de médio porte, controlando prazos, responsáveis, horas, custos e progresso.
D20: 2. FLUXO RECOMENDADO DE UTILIZAÇÃO
C21: • | D21: 1º) Leia esta aba de Instruções por completo.
C22: • | D22: 2º) Cadastre as Categorias (aba 06).
C23: • | D23: 3º) Cadastre os Clientes (aba 05).
C24: • | D24: 4º) Cadastre a Equipe (aba 04).
C25: • | D25: 5º) Cadastre os Projetos (aba 03).
C26: • | D26: 6º) Registre os Marcos de cada projeto (aba 07).
C27: • | D27: 7º) Cadastre as Tarefas vinculadas a projetos e marcos (aba 08).
C28: • | D28: 8º) Registre diariamente as Horas Trabalhadas (aba 09).
C29: • | D29: 9º) Alimente o Controle Financeiro conforme os lançamentos ocorram (aba 10).
C30: • | D30: 10º) Acompanhe a execução no Cronograma/Gantt (aba 11).
C31: • | D31: 11º) Monitore os indicadores no Dashboard (aba 02).
C32: • | D32: 12º) Consulte análises detalhadas nos Relatórios (aba 12).
D33: 3. ORDEM CORRETA DE PREENCHIMENTO — POR QUE IMPORTA
D34: As listas suspensas de Projetos, Clientes, Categorias, Responsáveis e Departamentos são alimentadas pelos cadastros. Se você cadastrar tarefas antes de cadastrar projetos e equipe, as listas ficarão vazias. Sempre preencha de cima para baixo: Categorias → Clientes → Equipe → Projetos → Marcos → Tarefas → Horas → Financeiro.
D35: 4. SIGNIFICADO DOS CAMPOS PRINCIPAIS
C36: • | D36: ID — código único do registro. Nunca repita nem apague IDs já utilizados por outras abas.
C37: • | D37: Status (projeto) — Planejamento, Em andamento, Pausado, Concluído, Cancelado.
C38: • | D38: Status (tarefa) — Não iniciada, Em andamento, Concluída, Pausada, Cancelada, Aguardando.
C39: • | D39: Prioridade — Baixa, Média, Alta, Crítica. Usada nos gráficos e no realce por cor.
C40: • | D40: Data Início / Data Prevista — definem a barra do Gantt e o cálculo de Dias Previstos.
C41: • | D41: Data Conclusão — preencha somente quando a tarefa terminar. Alimenta Dias Utilizados e a curva de entregas.
C42: • | D42: Dias Previstos / Dias Utilizados — calculados automaticamente. Não digite nada nessas colunas.
C43: • | D43: Horas Previstas — estimativa da tarefa (digitada por você).
C44: • | D44: Horas Trabalhadas — some dos apontamentos da aba 09. Serve de base para o percentual.
C45: • | D45: Percentual — calculado: 100% se Concluída, 0% se Não iniciada/Cancelada, senão Horas Trabalhadas ÷ Horas Previstas.
C46: • | D46: Dependência — informe o ID da tarefa que precisa terminar antes desta.
C47: • | D47: Valor Previsto / Valor Real (aba 10) — orçado x efetivamente gasto. A Diferença é calculada.
D48: 5. COMO CADASTRAR PROJETOS (ABA 03)
D49: Clique na última linha da tabela e pressione TAB para criar uma nova linha — a Tabela Estruturada se expande sozinha e todas as fórmulas descem automaticamente. Preencha ID Projeto, Nome, Cliente, Categoria, Gestor, Responsável, datas, Status, Prioridade e Orçamento Previsto. As colunas Custo Atual, Horas Previstas, Horas Trabalhadas e Percentual Concluído são calculadas a partir das abas 08, 09 e 10 — não digite nelas.
D50: 6. COMO CADASTRAR EQUIPE (ABA 04)
D51: Informe ID, Nome, Cargo, Departamento, contato, Valor Hora e Carga Horária. O campo Nome alimenta as listas de Responsável em Tarefas e de Funcionário em Horas. O Valor Hora permite estimar custo de mão de obra por colaborador.
D52: 7. COMO CADASTRAR TAREFAS (ABA 08)
D53: Vincule cada tarefa a um Projeto (ID) e, quando aplicável, a um Marco. Preencha Título, Descrição, Responsável, Departamento, Prioridade, Status, Data Início, Data Prevista e Horas Previstas. As tarefas cadastradas aqui aparecem automaticamente na tabela do Gantt (aba 11), até o limite de 26 linhas pré-configuradas — para mais tarefas, copie as fórmulas da última linha do Gantt para baixo.
D54: 8. COMO ALTERAR STATUS
D55: Use sempre a lista suspensa da célula. Alterar o status recalcula na hora os KPIs do Dashboard, a cor da barra no Gantt e os Relatórios. Ao marcar uma tarefa como Concluída, preencha também a Data Conclusão — sem ela os indicadores de prazo ficam incompletos.
D56: 9. COMO ATUALIZAR O PROGRESSO
D57: Você não digita o percentual: registre as horas na aba 09 (um lançamento por dia/tarefa) e o percentual sobe automaticamente. Para dar por encerrada uma tarefa, mude o Status para Concluída — o percentual vai a 100% independentemente das horas.
D58: 10. COMO INTERPRETAR O DASHBOARD (ABA 02)
C59: • | D59: Faixa de Indicadores-Chave: 20 cartões com projetos, tarefas, horas, custos e desvios.
C60: • | D60: Desvio Financeiro / Desvio de Horas: valor positivo significa estouro do previsto; negativo significa economia ou execução ainda em curso.
C61: • | D61: % Orçamento Consumido: custo realizado ÷ orçamento previsto. Acima de 100% indica estouro.
C62: • | D62: Cumprimento de Cronograma: proporção de tarefas que não estão atrasadas.
C63: • | D63: Projetos em Risco: em andamento, com prazo em até 30 dias e menos de 80% concluídos.
C64: • | D64: Segmentações: clique em um item para filtrar; CTRL+clique seleciona vários; use o ícone do funil para limpar.
D65: 11. COMO INTERPRETAR O GANTT (ABA 11)
C66: • | D66: A célula amarela 'Data base do cronograma' controla a janela exibida: 120 dias corridos a partir dela. Altere-a para navegar no tempo.
C67: • | D67: Verde = Concluído | Vermelho = Atrasado | Amarelo = prazo vence em até 7 dias | Azul = Em andamento | Cinza = Não iniciado | Laranja = coluna do dia de hoje.
C68: • | D68: As barras são geradas por Formatação Condicional comparando a data da coluna com as datas de início e fim da tarefa. Não pinte células manualmente.
C69: • | D69: As colunas da tabela ficam congeladas: role para a direita para avançar no calendário sem perder os nomes das tarefas.
D70: 12. PERGUNTAS FREQUENTES
C71: • | D71: As listas suspensas estão vazias — falta preencher os cadastros das abas 04, 05, 06 e 03.
C72: • | D72: Adicionei uma linha e as fórmulas não vieram — verifique se digitou dentro da Tabela Estruturada. Fora dela nada é calculado.
C73: • | D73: O Dashboard não mudou — pressione F9 para recalcular; se usar Tabelas Dinâmicas, clique com o botão direito e escolha Atualizar.
C74: • | D74: Os Relatórios estão desatualizados — na guia Dados, clique em 'Atualizar Tudo'.
C75: • | D75: A barra não aparece no Gantt — confira se a tarefa tem Data Início e Data Prevista e se elas caem dentro da janela de 120 dias da data base.
C76: • | D76: Meu projeto aparece como atrasado sem estar — confirme a Data Final Prevista e, se já terminou, preencha a Data Final Real e mude o Status para Concluído.
C77: • | D77: Posso apagar as linhas de exemplo — sim. Selecione as linhas de dados (não o cabeçalho) e exclua; a estrutura, as validações e as fórmulas permanecem.
D78: 13. BOAS PRÁTICAS
C79: • | D79: Nunca edite a aba 13 - Cálculos: ela é o motor de todos os indicadores.
C80: • | D80: Nunca use as colunas A e B nem as linhas 1 a 5 — são reservadas ao layout e à barra de navegação.
C81: • | D81: Não apague cabeçalhos de tabela nem renomeie as tabelas estruturadas.
C82: • | D82: Não digite em colunas calculadas (fundo já preenchido por fórmula): Dias, Percentual, Custo Atual, Diferença.
C83: • | D83: Mantenha os IDs padronizados (PRJ-01, TRF-001, MRC-01) para facilitar buscas e vínculos.
C84: • | D84: Registre horas diariamente — é o que mantém percentuais e produtividade confiáveis.
C85: • | D85: Faça uma cópia de segurança do arquivo antes de exclusões em massa.
C86: • | D86: Use texto azul para valores digitados e deixe em preto tudo que for calculado, seguindo o padrão já aplicado.

Sheet 02 - Dashboard (hidden)
C6: DASHBOARD EXECUTIVO
C7: INDICADORES-CHAVE
C8: Projetos Ativos | F8: Projetos em Andamento | I8: Projetos Concluídos | L8: Projetos Atrasados
C9: ='13 - Cálculos'!D15 -> 5 | F9: ='13 - Cálculos'!D11 -> 3 | I9: ='13 - Cálculos'!D13 -> 1 | L9: ='13 - Cálculos'!D16 -> 3
C12: Total de Tarefas | F12: Tarefas Concluídas | I12: Tarefas em Andamento | L12: Tarefas Pendentes
C13: ='13 - Cálculos'!D23 -> 26 | F13: ='13 - Cálculos'!D26 -> 9 | I13: ='13 - Cálculos'!D25 -> 5 | L13: ='13 - Cálculos'!D30 -> 12
C16: Tarefas Atrasadas | F16: % Médio de Conclusão | I16: % Tarefas Atrasadas | L16: Tarefas Críticas Abertas
C17: ='13 - Cálculos'!D31 -> 14 | F17: ='13 - Cálculos'!D20 -> 47.0% | I17: ='13 - Cálculos'!D33 -> 53.8% | L17: ='13 - Cálculos'!D32 -> 4
C20: Horas Previstas | F20: Horas Realizadas | I20: Custo Previsto | L20: Custo Realizado
C21: ='13 - Cálculos'!D39 -> 3,600.00 | F21: ='13 - Cálculos'!D40 -> 2,069.00 | I21: ='13 - Cálculos'!D43 -> R$ 3,300,000 | L21: ='13 - Cálculos'!D44 -> R$ 2,542,700
C24: Desvio Financeiro | F24: Desvio de Prazo (dias) | I24: % Orçamento Consumido | L24: Cumprimento Cronograma
C25: ='13 - Cálculos'!D46 -> (R$ 757,300) | F25: ='13 - Cálculos'!D51 -> -0.1 | I25: ='13 - Cálculos'!D45 -> 77.1% | L25: ='13 - Cálculos'!D52 -> 46.2%
C27: FILTROS (SEGMENTAÇÕES) — aplicam-se às tabelas de origem
C46: GRÁFICOS

Sheet 03 - Projetos (hidden)
C6: CADASTRO DE PROJETOS
C7: ID Projeto | D7: Nome Projeto | E7: Cliente | F7: Categoria | G7: Gestor | H7: Responsável Principal | I7: Data Início | J7: Data Final Prevista | K7: Data Final Real | L7: Status | M7: Prioridade | N7: Orçamento Previsto | O7: Custo Atual | P7: Horas Previstas | Q7: Horas Trabalhadas | R7: Percentual Concluído | S7: Observações
C8: PRJ-01 | D8: Implantação ERP Corporativo | E8: Alfa Indústria | F8: TI | G8: Ana Beatriz Costa | H8: Bruno Martins | I8: 2026-01-05 | J8: 2026-09-30 | L8: Em andamento | M8: Crítica | N8: R$ 480,000 | O8: =SUMIFS(tblFinanceiro[Valor Real],tblFinanceiro[Projeto],tblProjetos[[#This Row],[ID Projeto]],tblFinanceiro[Tipo],"Despesa")+SUMIFS(tblFinanceiro[Valor Real],tblFinanceiro[Projeto],tblProjetos[[#This Row],[ID Projeto]],tblFinanceiro[Tipo],"Investimento") -> R$ 417,800 | P8: =SUMIFS(tblTarefas[Horas Previstas],tblTarefas[Projeto],tblProjetos[[#This Row],[ID Projeto]]) -> 960.00 | Q8: =SUMIFS(tblTarefas[Horas Trabalhadas],tblTarefas[Projeto],tblProjetos[[#This Row],[ID Projeto]]) -> 460.00 | R8: =IFERROR(AVERAGEIFS(tblTarefas[Percentual],tblTarefas[Projeto],tblProjetos[[#This Row],[ID Projeto]]),0) -> 48.2% | S8: Fase de integração
C9: PRJ-02 | D9: Campanha Institucional 2026 | E9: Beta Varejo | F9: Marketing | G9: Ana Beatriz Costa | H9: Carla Nogueira | I9: 2026-02-02 | J9: 2026-07-31 | L9: Em andamento | M9: Alta | N9: R$ 150,000 | O9: =SUMIFS(tblFinanceiro[Valor Real],tblFinanceiro[Projeto],tblProjetos[[#This Row],[ID Projeto]],tblFinanceiro[Tipo],"Despesa")+SUMIFS(tblFinanceiro[Valor Real],tblFinanceiro[Projeto],tblProjetos[[#This Row],[ID Projeto]],tblFinanceiro[Tipo],"Investimento") -> R$ 108,000 | P9: =SUMIFS(tblTarefas[Horas Previstas],tblTarefas[Projeto],tblProjetos[[#This Row],[ID Projeto]]) -> 520.00 | Q9: =SUMIFS(tblTarefas[Horas Trabalhadas],tblTarefas[Projeto],tblProjetos[[#This Row],[ID Projeto]]) -> 304.00 | R9: =IFERROR(AVERAGEIFS(tblTarefas[Percentual],tblTarefas[Projeto],tblProjetos[[#This Row],[ID Projeto]]),0) -> 54.2% | S9: Lançamento em julho
C10: PRJ-03 | D10: Obra Centro de Distribuição | E10: Gama Construtora | F10: Construção | G10: Ana Beatriz Costa | H10: Diego Ferreira | I10: 2025-11-10 | J10: 2026-06-30 | L10: Em andamento | M10: Crítica | N10: R$ 2,200,000 | O10: =SUMIFS(tblFinanceiro[Valor Real],tblFinanceiro[Projeto],tblProjetos[[#This Row],[ID Projeto]],tblFinanceiro[Tipo],"Despesa")+SUMIFS(tblFinanceiro[Valor Real],tblFinanceiro[Projeto],tblProjetos[[#This Row],[ID Projeto]],tblFinanceiro[Tipo],"Investimento") -> R$ 1,918,500 | P10: =SUMIFS(tblTarefas[Horas Previstas],tblTarefas[Projeto],tblProjetos[[#This Row],[ID Projeto]]) -> 1,460.00 | Q10: =SUMIFS(tblTarefas[Horas Trabalhadas],tblTarefas[Projeto],tblProjetos[[#This Row],[ID Projeto]]) -> 1,045.00 | R10: =IFERROR(AVERAGEIFS(tblTarefas[Percentual],tblTarefas[Projeto],tblProjetos[[#This Row],[ID Projeto]]),0) -> 54.6% | S10: Fase 2 estrutura
C11: PRJ-04 | D11: Reestruturação Orçamentária | E11: Delta Serviços | F11: Financeiro | G11: Ana Beatriz Costa | H11: Eduarda Pires | I11: 2026-01-15 | J11: 2026-04-30 | K11: 2026-04-28 | L11: Concluído | M11: Média | N11: R$ 90,000 | O11: =SUMIFS(tblFinanceiro[Valor Real],tblFinanceiro[Projeto],tblProjetos[[#This Row],[ID Projeto]],tblFinanceiro[Tipo],"Despesa")+SUMIFS(tblFinanceiro[Valor Real],tblFinanceiro[Projeto],tblProjetos[[#This Row],[ID Projeto]],tblFinanceiro[Tipo],"Investimento") -> R$ 86,400 | P11: =SUMIFS(tblTarefas[Horas Previstas],tblTarefas[Projeto],tblProjetos[[#This Row],[ID Projeto]]) -> 250.00 | Q11: =SUMIFS(tblTarefas[Horas Trabalhadas],tblTarefas[Projeto],tblProjetos[[#This Row],[ID Projeto]]) -> 230.00 | R11: =IFERROR(AVERAGEIFS(tblTarefas[Percentual],tblTarefas[Projeto],tblProjetos[[#This Row],[ID Projeto]]),0) -> 100.0% | S11: Entregue no prazo
C12: PRJ-05 | D12: Programa de Treinamento Interno | E12: Épsilon Saúde | F12: RH | G12: Ana Beatriz Costa | H12: Gabriela Rocha | I12: 2026-03-01 | J12: 2026-05-31 | L12: Pausado | M12: Baixa | N12: R$ 60,000 | O12: =SUMIFS(tblFinanceiro[Valor Real],tblFinanceiro[Projeto],tblProjetos[[#This Row],[ID Projeto]],tblFinanceiro[Tipo],"Despesa")+SUMIFS(tblFinanceiro[Valor Real],tblFinanceiro[Projeto],tblProjetos[[#This Row],[ID Projeto]],tblFinanceiro[Tipo],"Investimento") -> R$ 12,000 | P12: =SUMIFS(tblTarefas[Horas Previstas],tblTarefas[Projeto],tblProjetos[[#This Row],[ID Projeto]]) -> 110.00 | Q12: =SUMIFS(tblTarefas[Horas Trabalhadas],tblTarefas[Projeto],tblProjetos[[#This Row],[ID Projeto]]) -> 30.00 | R12: =IFERROR(AVERAGEIFS(tblTarefas[Percentual],tblTarefas[Projeto],tblProjetos[[#This Row],[ID Projeto]]),0) -> 25.0% | S12: Aguardando verba
C13: PRJ-06 | D13: Portal de Autoatendimento | E13: Alfa Indústria | F13: Desenvolvimento | G13: Ana Beatriz Costa | H13: Felipe Andrade | I13: 2026-06-01 | J13: 2026-12-31 | L13: Planejamento | M13: Alta | N13: R$ 320,000 | O13: =SUMIFS(tblFinanceiro[Valor Real],tblFinanceiro[Projeto],tblProjetos[[#This Row],[ID Projeto]],tblFinanceiro[Tipo],"Despesa")+SUMIFS(tblFinanceiro[Valor Real],tblFinanceiro[Projeto],tblProjetos[[#This Row],[ID Projeto]],tblFinanceiro[Tipo],"Investimento") -> 0 | P13: =SUMIFS(tblTarefas[Horas Previstas],tblTarefas[Projeto],tblProjetos[[#This Row],[ID Projeto]]) -> 300.00 | Q13: =SUMIFS(tblTarefas[Horas Trabalhadas],tblTarefas[Projeto],tblProjetos[[#This Row],[ID Projeto]]) -> 0.00 | R13: =IFERROR(AVERAGEIFS(tblTarefas[Percentual],tblTarefas[Projeto],tblProjetos[[#This Row],[ID Projeto]]),0) -> 0.0% | S13: Kickoff em junho

Sheet 04 - Equipe (hidden)
C6: CADASTRO DE EQUIPE
C7: ID | D7: Nome | E7: Cargo | F7: Departamento | G7: Email | H7: Telefone | I7: Valor Hora | J7: Carga Horária | K7: Status | L7: Observações
C8: FUN-01 | D8: Ana Beatriz Costa | E8: Gerente de Projetos | F8: PMO | G8: ana.costa@empresa.com | H8: (11) 98100-1001 | I8: R$ 180.00 | J8: 44.00 | K8: Ativo | L8: Certificação PMP
C9: FUN-02 | D9: Bruno Martins | E9: Analista de Sistemas | F9: TI | G9: bruno.martins@empresa.com | H9: (11) 98100-1002 | I9: R$ 95.00 | J9: 44.00 | K9: Ativo
C10: FUN-03 | D10: Carla Nogueira | E10: Designer | F10: Marketing | G10: carla.nogueira@empresa.com | H10: (11) 98100-1003 | I10: R$ 85.00 | J10: 40.00 | K10: Ativo
C11: FUN-04 | D11: Diego Ferreira | E11: Engenheiro Civil | F11: Engenharia | G11: diego.ferreira@empresa.com | H11: (11) 98100-1004 | I11: R$ 150.00 | J11: 44.00 | K11: Ativo
C12: FUN-05 | D12: Eduarda Pires | E12: Analista Financeiro | F12: Financeiro | G12: eduarda.pires@empresa.com | H12: (11) 98100-1005 | I12: R$ 110.00 | J12: 44.00 | K12: Ativo
C13: FUN-06 | D13: Felipe Andrade | E13: Desenvolvedor | F13: TI | G13: felipe.andrade@empresa.com | H13: (11) 98100-1006 | I13: R$ 100.00 | J13: 44.00 | K13: Ativo
C14: FUN-07 | D14: Gabriela Rocha | E14: Analista de RH | F14: RH | G14: gabriela.rocha@empresa.com | H14: (11) 98100-1007 | I14: R$ 90.00 | J14: 40.00 | K14: Ativo
C15: FUN-08 | D15: Henrique Dias | E15: Consultor Comercial | F15: Comercial | G15: henrique.dias@empresa.com | H15: (11) 98100-1008 | I15: R$ 120.00 | J15: 44.00 | K15: Férias

Sheet 05 - Clientes (hidden)
C6: CADASTRO DE CLIENTES
C7: ID | D7: Empresa | E7: Contato | F7: Telefone | G7: Email | H7: Cidade | I7: Estado | J7: Categoria | K7: Status | L7: Observações
C8: CLI-01 | D8: Alfa Indústria | E8: Marcos Prado | F8: (11) 98811-2020 | G8: marcos@alfa.com.br | H8: São Paulo | I8: SP | J8: TI | K8: Ativo | L8: Contrato anual
C9: CLI-02 | D9: Beta Varejo | E9: Fernanda Lima | F9: (21) 97722-3131 | G9: fernanda@beta.com.br | H9: Rio de Janeiro | I9: RJ | J9: Marketing | K9: Ativo | L9: Cliente recorrente
C10: CLI-03 | D10: Gama Construtora | E10: Ricardo Souza | F10: (31) 96633-4242 | G10: ricardo@gama.com.br | H10: Belo Horizonte | I10: MG | J10: Construção | K10: Ativo | L10: Obra em fase 2
C11: CLI-04 | D11: Delta Serviços | E11: Juliana Alves | F11: (41) 95544-5353 | G11: juliana@delta.com.br | H11: Curitiba | I11: PR | J11: Financeiro | K11: Ativo | L11: Novo cliente
C12: CLI-05 | D12: Épsilon Saúde | E12: Paulo Ramos | F12: (51) 94455-6464 | G12: paulo@epsilon.com.br | H12: Porto Alegre | I12: RS | J12: RH | K12: Inativo | L12: Contrato encerrado

Sheet 06 - Categorias (hidden)
C6: CADASTRO DE CATEGORIAS
C7: ID | D7: Categoria | E7: Descrição | F7: Status
C8: CAT-01 | D8: Marketing | E8: Campanhas, marca e comunicação | F8: Ativa
C9: CAT-02 | D9: TI | E9: Sistemas, infraestrutura e software | F9: Ativa
C10: CAT-03 | D10: Construção | E10: Obras e reformas | F10: Ativa
C11: CAT-04 | D11: Financeiro | E11: Projetos financeiros e controladoria | F11: Ativa
C12: CAT-05 | D12: RH | E12: Pessoas, cultura e treinamento | F12: Ativa
C13: CAT-06 | D13: Comercial | E13: Vendas e expansão | F13: Ativa
C14: CAT-07 | D14: Pesquisa | E14: Estudos e P&D | F14: Ativa
C15: CAT-08 | D15: Desenvolvimento | E15: Produtos e novas soluções | F15: Ativa

Sheet 07 - Marcos (hidden)
C6: CADASTRO DE MARCOS (MILESTONES)
C7: ID | D7: Projeto | E7: Marco | F7: Data Prevista | G7: Data Real | H7: Status | I7: Observações
C8: MRC-01 | D8: PRJ-01 | E8: Levantamento de requisitos concluído | F8: 2026-02-13T00:00:00.000Z | G8: 2026-02-16T00:00:00.000Z | H8: Concluído | I8: Atraso de 3 dias
C9: MRC-02 | D9: PRJ-01 | E9: Parametrização dos módulos | F9: 2026-05-15T00:00:00.000Z | H9: Em andamento
C10: MRC-03 | D10: PRJ-01 | E10: Go-live do sistema | F10: 2026-09-15T00:00:00.000Z | H10: Não iniciado
C11: MRC-04 | D11: PRJ-02 | E11: Conceito criativo aprovado | F11: 2026-03-13T00:00:00.000Z | G11: 2026-03-11T00:00:00.000Z | H11: Concluído
C12: MRC-05 | D12: PRJ-02 | E12: Produção das peças | F12: 2026-05-29T00:00:00.000Z | H12: Em andamento
C13: MRC-06 | D13: PRJ-02 | E13: Veiculação da campanha | F13: 2026-07-15T00:00:00.000Z | H13: Não iniciado
C14: MRC-07 | D14: PRJ-03 | E14: Fundação concluída | F14: 2026-02-27T00:00:00.000Z | G14: 2026-03-06T00:00:00.000Z | H14: Concluído | I14: Chuvas atrasaram
C15: MRC-08 | D15: PRJ-03 | E15: Estrutura metálica | F15: 2026-05-29T00:00:00.000Z | H15: Em andamento
C16: MRC-09 | D16: PRJ-03 | E16: Entrega da obra | F16: 2026-06-30T00:00:00.000Z | H16: Não iniciado
C17: MRC-10 | D17: PRJ-04 | E17: Novo orçamento aprovado | F17: 2026-04-28T00:00:00.000Z | G17: 2026-04-28T00:00:00.000Z | H17: Concluído
C18: MRC-11 | D18: PRJ-05 | E18: Trilhas de treinamento definidas | F18: 2026-04-10T00:00:00.000Z | H18: Pausado
C19: MRC-12 | D19: PRJ-06 | E19: Escopo do portal aprovado | F19: 2026-06-30T00:00:00.000Z | H19: Não iniciado

Sheet 08 - Tarefas (hidden)
C6: CONTROLE GERAL DE TAREFAS
C7: ID | D7: Projeto | E7: Marco | F7: Título | G7: Descrição | H7: Responsável | I7: Departamento | J7: Prioridade | K7: Status | L7: Data Criação | M7: Data Início | N7: Data Prevista | O7: Data Conclusão | P7: Dias Previstos | Q7: Dias Utilizados | R7: Horas Previstas | S7: Horas Trabalhadas | T7: Percentual | U7: Dependência | V7: Observações
C8: TRF-001 | D8: PRJ-01 | E8: MRC-01 | F8: Mapear processos atuais | G8: Entrevistas com áreas usuárias | H8: Bruno Martins | I8: TI | J8: Alta | K8: Concluída | L8: 2026-01-05 | M8: 2026-01-05 | N8: 2026-01-23 | O8: 2026-01-22 | P8: =IF(COUNT(tblTarefas[[#This Row],[Data Início]],tblTarefas[[#This Row],[Data Prevista]])<2,"",tblTarefas[[#This Row],[Data Prevista]]-tblTarefas[[#This Row],[Data Início]]+1) -> 19 | Q8: =IF(COUNT(tblTarefas[[#This Row],[Data Início]])=0,"",IF(COUNT(tblTarefas[[#This Row],[Data Conclusão]])=1,tblTarefas[[#This Row],[Data Conclusão]]-tblTarefas[[#This Row],[Data Início]]+1,MAX(0,TODAY()-tblTarefas[[#This Row],[Data Início]]+1))) -> 18 | R8: 120.00 | S8: 118.00 | T8: =IF(tblTarefas[[#This Row],[Status]]="Concluída",1,IF(OR(tblTarefas[[#This Row],[Status]]="Não iniciada",tblTarefas[[#This Row],[Status]]="Cancelada"),0,IF(tblTarefas[[#This Row],[Horas Previstas]]=0,0,MIN(1,tblTarefas[[#This Row],[Horas Trabalhadas]]/tblTarefas[[#This Row],[Horas Previstas]])))) -> 100.0%
C9: TRF-002 | D9: PRJ-01 | E9: MRC-01 | F9: Documentar requisitos | G9: Especificação funcional | H9: Bruno Martins | I9: TI | J9: Alta | K9: Concluída | L9: 2026-01-05 | M9: 2026-01-26 | N9: 2026-02-13 | O9: 2026-02-16 | P9: =IF(COUNT(tblTarefas[[#This Row],[Data Início]],tblTarefas[[#This Row],[Data Prevista]])<2,"",tblTarefas[[#This Row],[Data Prevista]]-tblTarefas[[#This Row],[Data Início]]+1) -> 19 | Q9: =IF(COUNT(tblTarefas[[#This Row],[Data Início]])=0,"",IF(COUNT(tblTarefas[[#This Row],[Data Conclusão]])=1,tblTarefas[[#This Row],[Data Conclusão]]-tblTarefas[[#This Row],[Data Início]]+1,MAX(0,TODAY()-tblTarefas[[#This Row],[Data Início]]+1))) -> 22 | R9: 100.00 | S9: 112.00 | T9: =IF(tblTarefas[[#This Row],[Status]]="Concluída",1,IF(OR(tblTarefas[[#This Row],[Status]]="Não iniciada",tblTarefas[[#This Row],[Status]]="Cancelada"),0,IF(tblTarefas[[#This Row],[Horas Previstas]]=0,0,MIN(1,tblTarefas[[#This Row],[Horas Trabalhadas]]/tblTarefas[[#This Row],[Horas Previstas]])))) -> 100.0% | U9: TRF-001
C10: TRF-003 | D10: PRJ-01 | E10: MRC-02 | F10: Parametrizar módulo financeiro | G10: Configuração de contas | H10: Eduarda Pires | I10: Financeiro | J10: Crítica | K10: Em andamento | L10: 2026-02-10 | M10: 2026-02-17 | N10: 2026-04-10 | P10: =IF(COUNT(tblTarefas[[#This Row],[Data Início]],tblTarefas[[#This Row],[Data Prevista]])<2,"",tblTarefas[[#This Row],[Data Prevista]]-tblTarefas[[#This Row],[Data Início]]+1) -> 53 | Q10: =IF(COUNT(tblTarefas[[#This Row],[Data Início]])=0,"",IF(COUNT(tblTarefas[[#This Row],[Data Conclusão]])=1,tblTarefas[[#This Row],[Data Conclusão]]-tblTarefas[[#This Row],[Data Início]]+1,MAX(0,TODAY()-tblTarefas[[#This Row],[Data Início]]+1))) -> 178 | R10: 160.00 | S10: 140.00 | T10: =IF(tblTarefas[[#This Row],[Status]]="Concluída",1,IF(OR(tblTarefas[[#This Row],[Status]]="Não iniciada",tblTarefas[[#This Row],[Status]]="Cancelada"),0,IF(tblTarefas[[#This Row],[Horas Previstas]]=0,0,MIN(1,tblTarefas[[#This Row],[Horas Trabalhadas]]/tblTarefas[[#This Row],[Horas Previstas]])))) -> 87.5% | U10: TRF-002
C11: TRF-004 | D11: PRJ-01 | E11: MRC-02 | F11: Parametrizar módulo estoque | G11: Configuração de itens | H11: Bruno Martins | I11: TI | J11: Alta | K11: Em andamento | L11: 2026-02-10 | M11: 2026-03-02 | N11: 2026-05-15 | P11: =IF(COUNT(tblTarefas[[#This Row],[Data Início]],tblTarefas[[#This Row],[Data Prevista]])<2,"",tblTarefas[[#This Row],[Data Prevista]]-tblTarefas[[#This Row],[Data Início]]+1) -> 75 | Q11: =IF(COUNT(tblTarefas[[#This Row],[Data Início]])=0,"",IF(COUNT(tblTarefas[[#This Row],[Data Conclusão]])=1,tblTarefas[[#This Row],[Data Conclusão]]-tblTarefas[[#This Row],[Data Início]]+1,MAX(0,TODAY()-tblTarefas[[#This Row],[Data Início]]+1))) -> 165 | R11: 180.00 | S11: 90.00 | T11: =IF(tblTarefas[[#This Row],[Status]]="Concluída",1,IF(OR(tblTarefas[[#This Row],[Status]]="Não iniciada",tblTarefas[[#This Row],[Status]]="Cancelada"),0,IF(tblTarefas[[#This Row],[Horas Previstas]]=0,0,MIN(1,tblTarefas[[#This Row],[Horas Trabalhadas]]/tblTarefas[[#This Row],[Horas Previstas]])))) -> 50.0% | U11: TRF-002
C12: TRF-005 | D12: PRJ-01 | E12: MRC-02 | F12: Migração de dados legados | G12: Carga e validação | H12: Felipe Andrade | I12: TI | J12: Crítica | K12: Não iniciada | L12: 2026-02-10 | M12: 2026-06-01 | N12: 2026-07-31 | P12: =IF(COUNT(tblTarefas[[#This Row],[Data Início]],tblTarefas[[#This Row],[Data Prevista]])<2,"",tblTarefas[[#This Row],[Data Prevista]]-tblTarefas[[#This Row],[Data Início]]+1) -> 61 | Q12: =IF(COUNT(tblTarefas[[#This Row],[Data Início]])=0,"",IF(COUNT(tblTarefas[[#This Row],[Data Conclusão]])=1,tblTarefas[[#This Row],[Data Conclusão]]-tblTarefas[[#This Row],[Data Início]]+1,MAX(0,TODAY()-tblTarefas[[#This Row],[Data Início]]+1))) -> 74 | R12: 200.00 | S12: 0.00 | T12: =IF(tblTarefas[[#This Row],[Status]]="Concluída",1,IF(OR(tblTarefas[[#This Row],[Status]]="Não iniciada",tblTarefas[[#This Row],[Status]]="Cancelada"),0,IF(tblTarefas[[#This Row],[Horas Previstas]]=0,0,MIN(1,tblTarefas[[#This Row],[Horas Trabalhadas]]/tblTarefas[[#This Row],[Horas Previstas]])))) -> 0.0% | U12: TRF-004
C13: TRF-006 | D13: PRJ-01 | E13: MRC-03 | F13: Treinamento de usuários | G13: Turmas por área | H13: Gabriela Rocha | I13: RH | J13: Média | K13: Não iniciada | L13: 2026-02-10 | M13: 2026-08-03 | N13: 2026-08-28 | P13: =IF(COUNT(tblTarefas[[#This Row],[Data Início]],tblTarefas[[#This Row],[Data Prevista]])<2,"",tblTarefas[[#This Row],[Data Prevista]]-tblTarefas[[#This Row],[Data Início]]+1) -> 26 | Q13: =IF(COUNT(tblTarefas[[#This Row],[Data Início]])=0,"",IF(COUNT(tblTarefas[[#This Row],[Data Conclusão]])=1,tblTarefas[[#This Row],[Data Conclusão]]-tblTarefas[[#This Row],[Data Início]]+1,MAX(0,TODAY()-tblTarefas[[#This Row],[Data Início]]+1))) -> 11 | R13: 80.00 | S13: 0.00 | T13: =IF(tblTarefas[[#This Row],[Status]]="Concluída",1,IF(OR(tblTarefas[[#This Row],[Status]]="Não iniciada",tblTarefas[[#This Row],[Status]]="Cancelada"),0,IF(tblTarefas[[#This Row],[Horas Previstas]]=0,0,MIN(1,tblTarefas[[#This Row],[Horas Trabalhadas]]/tblTarefas[[#This Row],[Horas Previstas]])))) -> 0.0% | U13: TRF-005
C14: TRF-007 | D14: PRJ-01 | E14: MRC-03 | F14: Go-live e suporte | G14: Acompanhamento pós-virada | H14: Bruno Martins | I14: TI | J14: Crítica | K14: Não iniciada | L14: 2026-02-10 | M14: 2026-08-31 | N14: 2026-09-30 | P14: =IF(COUNT(tblTarefas[[#This Row],[Data Início]],tblTarefas[[#This Row],[Data Prevista]])<2,"",tblTarefas[[#This Row],[Data Prevista]]-tblTarefas[[#This Row],[Data Início]]+1) -> 31 | Q14: =IF(COUNT(tblTarefas[[#This Row],[Data Início]])=0,"",IF(COUNT(tblTarefas[[#This Row],[Data Conclusão]])=1,tblTarefas[[#This Row],[Data Conclusão]]-tblTarefas[[#This Row],[Data Início]]+1,MAX(0,TODAY()-tblTarefas[[#This Row],[Data Início]]+1))) -> 0 | R14: 120.00 | S14: 0.00 | T14: =IF(tblTarefas[[#This Row],[Status]]="Concluída",1,IF(OR(tblTarefas[[#This Row],[Status]]="Não iniciada",tblTarefas[[#This Row],[Status]]="Cancelada"),0,IF(tblTarefas[[#This Row],[Horas Previstas]]=0,0,MIN(1,tblTarefas[[#This Row],[Horas Trabalhadas]]/tblTarefas[[#This Row],[Horas Previstas]])))) -> 0.0% | U14: TRF-006
C15: TRF-008 | D15: PRJ-02 | E15: MRC-04 | F15: Briefing com cliente | G15: Alinhamento de objetivos | H15: Carla Nogueira | I15: Marketing | J15: Média | K15: Concluída | L15: 2026-02-02 | M15: 2026-02-02 | N15: 2026-02-13 | O15: 2026-02-12 | P15: =IF(COUNT(tblTarefas[[#This Row],[Data Início]],tblTarefas[[#This Row],[Data Prevista]])<2,"",tblTarefas[[#This Row],[Data Prevista]]-tblTarefas[[#This Row],[Data Início]]+1) -> 12 | Q15: =IF(COUNT(tblTarefas[[#This Row],[Data Início]])=0,"",IF(COUNT(tblTarefas[[#This Row],[Data Conclusão]])=1,tblTarefas[[#This Row],[Data Conclusão]]-tblTarefas[[#This Row],[Data Início]]+1,MAX(0,TODAY()-tblTarefas[[#This Row],[Data Início]]+1))) -> 11 | R15: 40.00 | S15: 38.00 | T15: =IF(tblTarefas[[#This Row],[Status]]="Concluída",1,IF(OR(tblTarefas[[#This Row],[Status]]="Não iniciada",tblTarefas[[#This Row],[Status]]="Cancelada"),0,IF(tblTarefas[[#This Row],[Horas Previstas]]=0,0,MIN(1,tblTarefas[[#This Row],[Horas Trabalhadas]]/tblTarefas[[#This Row],[Horas Previstas]])))) -> 100.0%
C16: TRF-009 | D16: PRJ-02 | E16: MRC-04 | F16: Desenvolver conceito criativo | G16: Rotas criativas | H16: Carla Nogueira | I16: Marketing | J16: Alta | K16: Concluída | L16: 2026-02-02 | M16: 2026-02-16 | N16: 2026-03-13 | O16: 2026-03-11 | P16: =IF(COUNT(tblTarefas[[#This Row],[Data Início]],tblTarefas[[#This Row],[Data Prevista]])<2,"",tblTarefas[[#This Row],[Data Prevista]]-tblTarefas[[#This Row],[Data Início]]+1) -> 26 | Q16: =IF(COUNT(tblTarefas[[#This Row],[Data Início]])=0,"",IF(COUNT(tblTarefas[[#This Row],[Data Conclusão]])=1,tblTarefas[[#This Row],[Data Conclusão]]-tblTarefas[[#This Row],[Data Início]]+1,MAX(0,TODAY()-tblTarefas[[#This Row],[Data Início]]+1))) -> 24 | R16: 90.00 | S16: 86.00 | T16: =IF(tblTarefas[[#This Row],[Status]]="Concluída",1,IF(OR(tblTarefas[[#This Row],[Status]]="Não iniciada",tblTarefas[[#This Row],[Status]]="Cancelada"),0,IF(tblTarefas[[#This Row],[Horas Previstas]]=0,0,MIN(1,tblTarefas[[#This Row],[Horas Trabalhadas]]/tblTarefas[[#This Row],[Horas Previstas]])))) -> 100.0% | U16: TRF-008
C17: TRF-010 | D17: PRJ-02 | E17: MRC-05 | F17: Produzir peças gráficas | G17: KV e adaptações | H17: Carla Nogueira | I17: Marketing | J17: Alta | K17: Em andamento | L17: 2026-03-10 | M17: 2026-03-16 | N17: 2026-05-29 | P17: =IF(COUNT(tblTarefas[[#This Row],[Data Início]],tblTarefas[[#This Row],[Data Prevista]])<2,"",tblTarefas[[#This Row],[Data Prevista]]-tblTarefas[[#This Row],[Data Início]]+1) -> 75 | Q17: =IF(COUNT(tblTarefas[[#This Row],[Data Início]])=0,"",IF(COUNT(tblTarefas[[#This Row],[Data Conclusão]])=1,tblTarefas[[#This Row],[Data Conclusão]]-tblTarefas[[#This Row],[Data Início]]+1,MAX(0,TODAY()-tblTarefas[[#This Row],[Data Início]]+1))) -> 151 | R17: 160.00 | S17: 120.00 | T17: =IF(tblTarefas[[#This Row],[Status]]="Concluída",1,IF(OR(tblTarefas[[#This Row],[Status]]="Não iniciada",tblTarefas[[#This Row],[Status]]="Cancelada"),0,IF(tblTarefas[[#This Row],[Horas Previstas]]=0,0,MIN(1,tblTarefas[[#This Row],[Horas Trabalhadas]]/tblTarefas[[#This Row],[Horas Previstas]])))) -> 75.0% | U17: TRF-009
C18: TRF-011 | D18: PRJ-02 | E18: MRC-05 | F18: Produzir vídeo institucional | G18: Roteiro, gravação e edição | H18: Carla Nogueira | I18: Marketing | J18: Média | K18: Em andamento | L18: 2026-03-10 | M18: 2026-04-06 | N18: 2026-06-15 | P18: =IF(COUNT(tblTarefas[[#This Row],[Data Início]],tblTarefas[[#This Row],[Data Prevista]])<2,"",tblTarefas[[#This Row],[Data Prevista]]-tblTarefas[[#This Row],[Data Início]]+1) -> 71 | Q18: =IF(COUNT(tblTarefas[[#This Row],[Data Início]])=0,"",IF(COUNT(tblTarefas[[#This Row],[Data Conclusão]])=1,tblTarefas[[#This Row],[Data Conclusão]]-tblTarefas[[#This Row],[Data Início]]+1,MAX(0,TODAY()-tblTarefas[[#This Row],[Data Início]]+1))) -> 130 | R18: 120.00 | S18: 60.00 | T18: =IF(tblTarefas[[#This Row],[Status]]="Concluída",1,IF(OR(tblTarefas[[#This Row],[Status]]="Não iniciada",tblTarefas[[#This Row],[Status]]="Cancelada"),0,IF(tblTarefas[[#This Row],[Horas Previstas]]=0,0,MIN(1,tblTarefas[[#This Row],[Horas Trabalhadas]]/tblTarefas[[#This Row],[Horas Previstas]])))) -> 50.0% | U18: TRF-009
C19: TRF-012 | D19: PRJ-02 | E19: MRC-06 | F19: Plano de mídia | G19: Definição de canais e verba | H19: Henrique Dias | I19: Comercial | J19: Média | K19: Aguardando | L19: 2026-03-10 | M19: 2026-06-01 | N19: 2026-06-26 | P19: =IF(COUNT(tblTarefas[[#This Row],[Data Início]],tblTarefas[[#This Row],[Data Prevista]])<2,"",tblTarefas[[#This Row],[Data Prevista]]-tblTarefas[[#This Row],[Data Início]]+1) -> 26 | Q19: =IF(COUNT(tblTarefas[[#This Row],[Data Início]])=0,"",IF(COUNT(tblTarefas[[#This Row],[Data Conclusão]])=1,tblTarefas[[#This Row],[Data Conclusão]]-tblTarefas[[#This Row],[Data Início]]+1,MAX(0,TODAY()-tblTarefas[[#This Row],[Data Início]]+1))) -> 74 | R19: 50.00 | S19: 0.00 | T19: =IF(tblTarefas[[#This Row],[Status]]="Concluída",1,IF(OR(tblTarefas[[#This Row],[Status]]="Não iniciada",tblTarefas[[#This Row],[Status]]="Cancelada"),0,IF(tblTarefas[[#This Row],[Horas Previstas]]=0,0,MIN(1,tblTarefas[[#This Row],[Horas Trabalhadas]]/tblTarefas[[#This Row],[Horas Previstas]])))) -> 0.0% | U19: TRF-010
C20: TRF-013 | D20: PRJ-02 | E20: MRC-06 | F20: Veicular campanha | G20: Ativação nos canais | H20: Henrique Dias | I20: Comercial | J20: Alta | K20: Não iniciada | L20: 2026-03-10 | M20: 2026-07-01 | N20: 2026-07-31 | P20: =IF(COUNT(tblTarefas[[#This Row],[Data Início]],tblTarefas[[#This Row],[Data Prevista]])<2,"",tblTarefas[[#This Row],[Data Prevista]]-tblTarefas[[#This Row],[Data Início]]+1) -> 31 | Q20: =IF(COUNT(tblTarefas[[#This Row],[Data Início]])=0,"",IF(COUNT(tblTarefas[[#This Row],[Data Conclusão]])=1,tblTarefas[[#This Row],[Data Conclusão]]-tblTarefas[[#This Row],[Data Início]]+1,MAX(0,TODAY()-tblTarefas[[#This Row],[Data Início]]+1))) -> 44 | R20: 60.00 | S20: 0.00 | T20: =IF(tblTarefas[[#This Row],[Status]]="Concluída",1,IF(OR(tblTarefas[[#This Row],[Status]]="Não iniciada",tblTarefas[[#This Row],[Status]]="Cancelada"),0,IF(tblTarefas[[#This Row],[Horas Previstas]]=0,0,MIN(1,tblTarefas[[#This Row],[Horas Trabalhadas]]/tblTarefas[[#This Row],[Horas Previstas]])))) -> 0.0% | U20: TRF-012
C21: TRF-014 | D21: PRJ-03 | E21: MRC-07 | F21: Terraplanagem | G21: Preparação do terreno | H21: Diego Ferreira | I21: Engenharia | J21: Alta | K21: Concluída | L21: 2025-11-10 | M21: 2025-11-10 | N21: 2025-12-19 | O21: 2025-12-18 | P21: =IF(COUNT(tblTarefas[[#This Row],[Data Início]],tblTarefas[[#This Row],[Data Prevista]])<2,"",tblTarefas[[#This Row],[Data Prevista]]-tblTarefas[[#This Row],[Data Início]]+1) -> 40 | Q21: =IF(COUNT(tblTarefas[[#This Row],[Data Início]])=0,"",IF(COUNT(tblTarefas[[#This Row],[Data Conclusão]])=1,tblTarefas[[#This Row],[Data Conclusão]]-tblTarefas[[#This Row],[Data Início]]+1,MAX(0,TODAY()-tblTarefas[[#This Row],[Data Início]]+1))) -> 39 | R21: 260.00 | S21: 255.00 | T21: =IF(tblTarefas[[#This Row],[Status]]="Concluída",1,IF(OR(tblTarefas[[#This Row],[Status]]="Não iniciada",tblTarefas[[#This Row],[Status]]="Cancelada"),0,IF(tblTarefas[[#This Row],[Horas Previstas]]=0,0,MIN(1,tblTarefas[[#This Row],[Horas Trabalhadas]]/tblTarefas[[#This Row],[Horas Previstas]])))) -> 100.0%
C22: TRF-015 | D22: PRJ-03 | E22: MRC-07 | F22: Fundação | G22: Sapatas e blocos | H22: Diego Ferreira | I22: Engenharia | J22: Crítica | K22: Concluída | L22: 2025-11-10 | M22: 2026-01-05 | N22: 2026-02-27 | O22: 2026-03-06 | P22: =IF(COUNT(tblTarefas[[#This Row],[Data Início]],tblTarefas[[#This Row],[Data Prevista]])<2,"",tblTarefas[[#This Row],[Data Prevista]]-tblTarefas[[#This Row],[Data Início]]+1) -> 54 | Q22: =IF(COUNT(tblTarefas[[#This Row],[Data Início]])=0,"",IF(COUNT(tblTarefas[[#This Row],[Data Conclusão]])=1,tblTarefas[[#This Row],[Data Conclusão]]-tblTarefas[[#This Row],[Data Início]]+1,MAX(0,TODAY()-tblTarefas[[#This Row],[Data Início]]+1))) -> 61 | R22: 380.00 | S22: 410.00 | T22: =IF(tblTarefas[[#This Row],[Status]]="Concluída",1,IF(OR(tblTarefas[[#This Row],[Status]]="Não iniciada",tblTarefas[[#This Row],[Status]]="Cancelada"),0,IF(tblTarefas[[#This Row],[Horas Previstas]]=0,0,MIN(1,tblTarefas[[#This Row],[Horas Trabalhadas]]/tblTarefas[[#This Row],[Horas Previstas]])))) -> 100.0% | U22: TRF-014
C23: TRF-016 | D23: PRJ-03 | E23: MRC-08 | F23: Estrutura metálica | G23: Montagem de pilares e vigas | H23: Diego Ferreira | I23: Engenharia | J23: Crítica | K23: Em andamento | L23: 2026-01-15 | M23: 2026-03-09 | N23: 2026-05-29 | P23: =IF(COUNT(tblTarefas[[#This Row],[Data Início]],tblTarefas[[#This Row],[Data Prevista]])<2,"",tblTarefas[[#This Row],[Data Prevista]]-tblTarefas[[#This Row],[Data Início]]+1) -> 82 | Q23: =IF(COUNT(tblTarefas[[#This Row],[Data Início]])=0,"",IF(COUNT(tblTarefas[[#This Row],[Data Conclusão]])=1,tblTarefas[[#This Row],[Data Conclusão]]-tblTarefas[[#This Row],[Data Início]]+1,MAX(0,TODAY()-tblTarefas[[#This Row],[Data Início]]+1))) -> 158 | R23: 520.00 | S23: 380.00 | T23: =IF(tblTarefas[[#This Row],[Status]]="Concluída",1,IF(OR(tblTarefas[[#This Row],[Status]]="Não iniciada",tblTarefas[[#This Row],[Status]]="Cancelada"),0,IF(tblTarefas[[#This Row],[Horas Previstas]]=0,0,MIN(1,tblTarefas[[#This Row],[Horas Trabalhadas]]/tblTarefas[[#This Row],[Horas Previstas]])))) -> 73.1% | U23: TRF-015
C24: TRF-017 | D24: PRJ-03 | E24: MRC-08 | F24: Cobertura | G24: Telhas e calhas | H24: Diego Ferreira | I24: Engenharia | J24: Alta | K24: Não iniciada | L24: 2026-01-15 | M24: 2026-06-01 | N24: 2026-06-19 | P24: =IF(COUNT(tblTarefas[[#This Row],[Data Início]],tblTarefas[[#This Row],[Data Prevista]])<2,"",tblTarefas[[#This Row],[Data Prevista]]-tblTarefas[[#This Row],[Data Início]]+1) -> 19 | Q24: =IF(COUNT(tblTarefas[[#This Row],[Data Início]])=0,"",IF(COUNT(tblTarefas[[#This Row],[Data Conclusão]])=1,tblTarefas[[#This Row],[Data Conclusão]]-tblTarefas[[#This Row],[Data Início]]+1,MAX(0,TODAY()-tblTarefas[[#This Row],[Data Início]]+1))) -> 74 | R24: 180.00 | S24: 0.00 | T24: =IF(tblTarefas[[#This Row],[Status]]="Concluída",1,IF(OR(tblTarefas[[#This Row],[Status]]="Não iniciada",tblTarefas[[#This Row],[Status]]="Cancelada"),0,IF(tblTarefas[[#This Row],[Horas Previstas]]=0,0,MIN(1,tblTarefas[[#This Row],[Horas Trabalhadas]]/tblTarefas[[#This Row],[Horas Previstas]])))) -> 0.0% | U24: TRF-016
C25: TRF-018 | D25: PRJ-03 | E25: MRC-09 | F25: Acabamentos e vistoria | G25: Pintura, piso e checklist final | H25: Diego Ferreira | I25: Engenharia | J25: Média | K25: Não iniciada | L25: 2026-01-15 | M25: 2026-06-22 | N25: 2026-06-30 | P25: =IF(COUNT(tblTarefas[[#This Row],[Data Início]],tblTarefas[[#This Row],[Data Prevista]])<2,"",tblTarefas[[#This Row],[Data Prevista]]-tblTarefas[[#This Row],[Data Início]]+1) -> 9 | Q25: =IF(COUNT(tblTarefas[[#This Row],[Data Início]])=0,"",IF(COUNT(tblTarefas[[#This Row],[Data Conclusão]])=1,tblTarefas[[#This Row],[Data Conclusão]]-tblTarefas[[#This Row],[Data Início]]+1,MAX(0,TODAY()-tblTarefas[[#This Row],[Data Início]]+1))) -> 53 | R25: 120.00 | S25: 0.00 | T25: =IF(tblTarefas[[#This Row],[Status]]="Concluída",1,IF(OR(tblTarefas[[#This Row],[Status]]="Não iniciada",tblTarefas[[#This Row],[Status]]="Cancelada"),0,IF(tblTarefas[[#This Row],[Horas Previstas]]=0,0,MIN(1,tblTarefas[[#This Row],[Horas Trabalhadas]]/tblTarefas[[#This Row],[Horas Previstas]])))) -> 0.0% | U25: TRF-017
C26: TRF-019 | D26: PRJ-04 | E26: MRC-10 | F26: Diagnóstico orçamentário | G26: Análise das rubricas | H26: Eduarda Pires | I26: Financeiro | J26: Média | K26: Concluída | L26: 2026-01-15 | M26: 2026-01-15 | N26: 2026-02-13 | O26: 2026-02-11 | P26: =IF(COUNT(tblTarefas[[#This Row],[Data Início]],tblTarefas[[#This Row],[Data Prevista]])<2,"",tblTarefas[[#This Row],[Data Prevista]]-tblTarefas[[#This Row],[Data Início]]+1) -> 30 | Q26: =IF(COUNT(tblTarefas[[#This Row],[Data Início]])=0,"",IF(COUNT(tblTarefas[[#This Row],[Data Conclusão]])=1,tblTarefas[[#This Row],[Data Conclusão]]-tblTarefas[[#This Row],[Data Início]]+1,MAX(0,TODAY()-tblTarefas[[#This Row],[Data Início]]+1))) -> 28 | R26: 90.00 | S26: 84.00 | T26: =IF(tblTarefas[[#This Row],[Status]]="Concluída",1,IF(OR(tblTarefas[[#This Row],[Status]]="Não iniciada",tblTarefas[[#This Row],[Status]]="Cancelada"),0,IF(tblTarefas[[#This Row],[Horas Previstas]]=0,0,MIN(1,tblTarefas[[#This Row],[Horas Trabalhadas]]/tblTarefas[[#This Row],[Horas Previstas]])))) -> 100.0%
C27: TRF-020 | D27: PRJ-04 | E27: MRC-10 | F27: Redesenho do orçamento | G27: Nova estrutura de centros de custo | H27: Eduarda Pires | I27: Financeiro | J27: Alta | K27: Concluída | L27: 2026-01-15 | M27: 2026-02-16 | N27: 2026-03-31 | O27: 2026-03-27 | P27: =IF(COUNT(tblTarefas[[#This Row],[Data Início]],tblTarefas[[#This Row],[Data Prevista]])<2,"",tblTarefas[[#This Row],[Data Prevista]]-tblTarefas[[#This Row],[Data Início]]+1) -> 44 | Q27: =IF(COUNT(tblTarefas[[#This Row],[Data Início]])=0,"",IF(COUNT(tblTarefas[[#This Row],[Data Conclusão]])=1,tblTarefas[[#This Row],[Data Conclusão]]-tblTarefas[[#This Row],[Data Início]]+1,MAX(0,TODAY()-tblTarefas[[#This Row],[Data Início]]+1))) -> 40 | R27: 120.00 | S27: 110.00 | T27: =IF(tblTarefas[[#This Row],[Status]]="Concluída",1,IF(OR(tblTarefas[[#This Row],[Status]]="Não iniciada",tblTarefas[[#This Row],[Status]]="Cancelada"),0,IF(tblTarefas[[#This Row],[Horas Previstas]]=0,0,MIN(1,tblTarefas[[#This Row],[Horas Trabalhadas]]/tblTarefas[[#This Row],[Horas Previstas]])))) -> 100.0% | U27: TRF-019
C28: TRF-021 | D28: PRJ-04 | E28: MRC-10 | F28: Aprovação da diretoria | G28: Apresentação e ajustes | H28: Ana Beatriz Costa | I28: PMO | J28: Alta | K28: Concluída | L28: 2026-01-15 | M28: 2026-04-01 | N28: 2026-04-28 | O28: 2026-04-28 | P28: =IF(COUNT(tblTarefas[[#This Row],[Data Início]],tblTarefas[[#This Row],[Data Prevista]])<2,"",tblTarefas[[#This Row],[Data Prevista]]-tblTarefas[[#This Row],[Data Início]]+1) -> 28 | Q28: =IF(COUNT(tblTarefas[[#This Row],[Data Início]])=0,"",IF(COUNT(tblTarefas[[#This Row],[Data Conclusão]])=1,tblTarefas[[#This Row],[Data Conclusão]]-tblTarefas[[#This Row],[Data Início]]+1,MAX(0,TODAY()-tblTarefas[[#This Row],[Data Início]]+1))) -> 28 | R28: 40.00 | S28: 36.00 | T28: =IF(tblTarefas[[#This Row],[Status]]="Concluída",1,IF(OR(tblTarefas[[#This Row],[Status]]="Não iniciada",tblTarefas[[#This Row],[Status]]="Cancelada"),0,IF(tblTarefas[[#This Row],[Horas Previstas]]=0,0,MIN(1,tblTarefas[[#This Row],[Horas Trabalhadas]]/tblTarefas[[#This Row],[Horas Previstas]])))) -> 100.0% | U28: TRF-020
C29: TRF-022 | D29: PRJ-05 | E29: MRC-11 | F29: Levantar necessidades de treinamento | G29: Pesquisa com lideranças | H29: Gabriela Rocha | I29: RH | J29: Baixa | K29: Pausada | L29: 2026-03-01 | M29: 2026-03-02 | N29: 2026-03-27 | P29: =IF(COUNT(tblTarefas[[#This Row],[Data Início]],tblTarefas[[#This Row],[Data Prevista]])<2,"",tblTarefas[[#This Row],[Data Prevista]]-tblTarefas[[#This Row],[Data Início]]+1) -> 26 | Q29: =IF(COUNT(tblTarefas[[#This Row],[Data Início]])=0,"",IF(COUNT(tblTarefas[[#This Row],[Data Conclusão]])=1,tblTarefas[[#This Row],[Data Conclusão]]-tblTarefas[[#This Row],[Data Início]]+1,MAX(0,TODAY()-tblTarefas[[#This Row],[Data Início]]+1))) -> 165 | R29: 60.00 | S29: 30.00 | T29: =IF(tblTarefas[[#This Row],[Status]]="Concluída",1,IF(OR(tblTarefas[[#This Row],[Status]]="Não iniciada",tblTarefas[[#This Row],[Status]]="Cancelada"),0,IF(tblTarefas[[#This Row],[Horas Previstas]]=0,0,MIN(1,tblTarefas[[#This Row],[Horas Trabalhadas]]/tblTarefas[[#This Row],[Horas Previstas]])))) -> 50.0%
C30: TRF-023 | D30: PRJ-05 | E30: MRC-11 | F30: Definir trilhas de aprendizagem | G30: Matriz de competências | H30: Gabriela Rocha | I30: RH | J30: Média | K30: Não iniciada | L30: 2026-03-01 | M30: 2026-03-30 | N30: 2026-04-10 | P30: =IF(COUNT(tblTarefas[[#This Row],[Data Início]],tblTarefas[[#This Row],[Data Prevista]])<2,"",tblTarefas[[#This Row],[Data Prevista]]-tblTarefas[[#This Row],[Data Início]]+1) -> 12 | Q30: =IF(COUNT(tblTarefas[[#This Row],[Data Início]])=0,"",IF(COUNT(tblTarefas[[#This Row],[Data Conclusão]])=1,tblTarefas[[#This Row],[Data Conclusão]]-tblTarefas[[#This Row],[Data Início]]+1,MAX(0,TODAY()-tblTarefas[[#This Row],[Data Início]]+1))) -> 137 | R30: 50.00 | S30: 0.00 | T30: =IF(tblTarefas[[#This Row],[Status]]="Concluída",1,IF(OR(tblTarefas[[#This Row],[Status]]="Não iniciada",tblTarefas[[#This Row],[Status]]="Cancelada"),0,IF(tblTarefas[[#This Row],[Horas Previstas]]=0,0,MIN(1,tblTarefas[[#This Row],[Horas Trabalhadas]]/tblTarefas[[#This Row],[Horas Previstas]])))) -> 0.0% | U30: TRF-022
C31: TRF-024 | D31: PRJ-06 | E31: MRC-12 | F31: Levantar escopo do portal | G31: Workshops com stakeholders | H31: Felipe Andrade | I31: TI | J31: Alta | K31: Não iniciada | L31: 2026-06-01 | M31: 2026-06-01 | N31: 2026-06-30 | P31: =IF(COUNT(tblTarefas[[#This Row],[Data Início]],tblTarefas[[#This Row],[Data Prevista]])<2,"",tblTarefas[[#This Row],[Data Prevista]]-tblTarefas[[#This Row],[Data Início]]+1) -> 30 | Q31: =IF(COUNT(tblTarefas[[#This Row],[Data Início]])=0,"",IF(COUNT(tblTarefas[[#This Row],[Data Conclusão]])=1,tblTarefas[[#This Row],[Data Conclusão]]-tblTarefas[[#This Row],[Data Início]]+1,MAX(0,TODAY()-tblTarefas[[#This Row],[Data Início]]+1))) -> 74 | R31: 100.00 | S31: 0.00 | T31: =IF(tblTarefas[[#This Row],[Status]]="Concluída",1,IF(OR(tblTarefas[[#This Row],[Status]]="Não iniciada",tblTarefas[[#This Row],[Status]]="Cancelada"),0,IF(tblTarefas[[#This Row],[Horas Previstas]]=0,0,MIN(1,tblTarefas[[#This Row],[Horas Trabalhadas]]/tblTarefas[[#This Row],[Horas Previstas]])))) -> 0.0%
C32: TRF-025 | D32: PRJ-06 | E32: MRC-12 | F32: Prototipar interface | G32: Wireframes e protótipo navegável | H32: Carla Nogueira | I32: Marketing | J32: Média | K32: Não iniciada | L32: 2026-06-01 | M32: 2026-07-01 | N32: 2026-07-31 | P32: =IF(COUNT(tblTarefas[[#This Row],[Data Início]],tblTarefas[[#This Row],[Data Prevista]])<2,"",tblTarefas[[#This Row],[Data Prevista]]-tblTarefas[[#This Row],[Data Início]]+1) -> 31 | Q32: =IF(COUNT(tblTarefas[[#This Row],[Data Início]])=0,"",IF(COUNT(tblTarefas[[#This Row],[Data Conclusão]])=1,tblTarefas[[#This Row],[Data Conclusão]]-tblTarefas[[#This Row],[Data Início]]+1,MAX(0,TODAY()-tblTarefas[[#This Row],[Data Início]]+1))) -> 44 | R32: 90.00 | S32: 0.00 | T32: =IF(tblTarefas[[#This Row],[Status]]="Concluída",1,IF(OR(tblTarefas[[#This Row],[Status]]="Não iniciada",tblTarefas[[#This Row],[Status]]="Cancelada"),0,IF(tblTarefas[[#This Row],[Horas Previstas]]=0,0,MIN(1,tblTarefas[[#This Row],[Horas Trabalhadas]]/tblTarefas[[#This Row],[Horas Previstas]])))) -> 0.0% | U32: TRF-024
C33: TRF-026 | D33: PRJ-06 | E33: MRC-12 | F33: Definir arquitetura técnica | G33: Stack, integrações e segurança | H33: Felipe Andrade | I33: TI | J33: Alta | K33: Não iniciada | L33: 2026-06-01 | M33: 2026-07-01 | N33: 2026-08-14 | P33: =IF(COUNT(tblTarefas[[#This Row],[Data Início]],tblTarefas[[#This Row],[Data Prevista]])<2,"",tblTarefas[[#This Row],[Data Prevista]]-tblTarefas[[#This Row],[Data Início]]+1) -> 45 | Q33: =IF(COUNT(tblTarefas[[#This Row],[Data Início]])=0,"",IF(COUNT(tblTarefas[[#This Row],[Data Conclusão]])=1,tblTarefas[[#This Row],[Data Conclusão]]-tblTarefas[[#This Row],[Data Início]]+1,MAX(0,TODAY()-tblTarefas[[#This Row],[Data Início]]+1))) -> 44 | R33: 110.00 | S33: 0.00 | T33: =IF(tblTarefas[[#This Row],[Status]]="Concluída",1,IF(OR(tblTarefas[[#This Row],[Status]]="Não iniciada",tblTarefas[[#This Row],[Status]]="Cancelada"),0,IF(tblTarefas[[#This Row],[Horas Previstas]]=0,0,MIN(1,tblTarefas[[#This Row],[Horas Trabalhadas]]/tblTarefas[[#This Row],[Horas Previstas]])))) -> 0.0% | U33: TRF-024

Sheet 09 - Horas (hidden)
C6: REGISTRO DIÁRIO DE HORAS
C7: ID | D7: Projeto | E7: Tarefa | F7: Funcionário | G7: Data | H7: Horas Trabalhadas | I7: Descrição
C8: HOR-001 | D8: PRJ-01 | E8: TRF-001 | F8: Bruno Martins | G8: 2026-01-09 | H8: 29.50 | I8: Apontamento de horas — TRF-001
C9: HOR-002 | D9: PRJ-01 | E9: TRF-001 | F9: Bruno Martins | G9: 2026-01-12 | H9: 29.50 | I9: Apontamento de horas — TRF-001
C10: HOR-003 | D10: PRJ-01 | E10: TRF-001 | F10: Bruno Martins | G10: 2026-01-15 | H10: 29.50 | I10: Apontamento de horas — TRF-001
C11: HOR-004 | D11: PRJ-01 | E11: TRF-001 | F11: Bruno Martins | G11: 2026-01-18 | H11: 29.50 | I11: Apontamento de horas — TRF-001
C12: HOR-005 | D12: PRJ-01 | E12: TRF-002 | F12: Bruno Martins | G12: 2026-01-21 | H12: 28.00 | I12: Apontamento de horas — TRF-002
C13: HOR-006 | D13: PRJ-01 | E13: TRF-002 | F13: Bruno Martins | G13: 2026-01-24 | H13: 28.00 | I13: Apontamento de horas — TRF-002
C14: HOR-007 | D14: PRJ-01 | E14: TRF-002 | F14: Bruno Martins | G14: 2026-01-27 | H14: 28.00 | I14: Apontamento de horas — TRF-002
C15: HOR-008 | D15: PRJ-01 | E15: TRF-002 | F15: Bruno Martins | G15: 2026-01-30 | H15: 28.00 | I15: Apontamento de horas — TRF-002
C16: HOR-009 | D16: PRJ-01 | E16: TRF-003 | F16: Eduarda Pires | G16: 2026-02-02 | H16: 35.00 | I16: Apontamento de horas — TRF-003
C17: HOR-010 | D17: PRJ-01 | E17: TRF-003 | F17: Eduarda Pires | G17: 2026-02-05 | H17: 35.00 | I17: Apontamento de horas — TRF-003
C18: HOR-011 | D18: PRJ-01 | E18: TRF-003 | F18: Eduarda Pires | G18: 2026-02-08 | H18: 35.00 | I18: Apontamento de horas — TRF-003
C19: HOR-012 | D19: PRJ-01 | E19: TRF-003 | F19: Eduarda Pires | G19: 2026-02-11 | H19: 35.00 | I19: Apontamento de horas — TRF-003
C20: HOR-013 | D20: PRJ-01 | E20: TRF-004 | F20: Bruno Martins | G20: 2026-02-14 | H20: 22.50 | I20: Apontamento de horas — TRF-004
C21: HOR-014 | D21: PRJ-01 | E21: TRF-004 | F21: Bruno Martins | G21: 2026-02-17 | H21: 22.50 | I21: Apontamento de horas — TRF-004
C22: HOR-015 | D22: PRJ-01 | E22: TRF-004 | F22: Bruno Martins | G22: 2026-02-20 | H22: 22.50 | I22: Apontamento de horas — TRF-004
C23: HOR-016 | D23: PRJ-01 | E23: TRF-004 | F23: Bruno Martins | G23: 2026-02-23 | H23: 22.50 | I23: Apontamento de horas — TRF-004
C24: HOR-017 | D24: PRJ-02 | E24: TRF-008 | F24: Carla Nogueira | G24: 2026-02-26 | H24: 9.50 | I24: Apontamento de horas — TRF-008
C25: HOR-018 | D25: PRJ-02 | E25: TRF-008 | F25: Carla Nogueira | G25: 2026-03-01 | H25: 9.50 | I25: Apontamento de horas — TRF-008
C26: HOR-019 | D26: PRJ-02 | E26: TRF-008 | F26: Carla Nogueira | G26: 2026-03-04 | H26: 9.50 | I26: Apontamento de horas — TRF-008
C27: HOR-020 | D27: PRJ-02 | E27: TRF-008 | F27: Carla Nogueira | G27: 2026-03-07 | H27: 9.50 | I27: Apontamento de horas — TRF-008
C28: HOR-021 | D28: PRJ-02 | E28: TRF-009 | F28: Carla Nogueira | G28: 2026-03-10 | H28: 21.50 | I28: Apontamento de horas — TRF-009
C29: HOR-022 | D29: PRJ-02 | E29: TRF-009 | F29: Carla Nogueira | G29: 2026-03-13 | H29: 21.50 | I29: Apontamento de horas — TRF-009
C30: HOR-023 | D30: PRJ-02 | E30: TRF-009 | F30: Carla Nogueira | G30: 2026-03-16 | H30: 21.50 | I30: Apontamento de horas — TRF-009
C31: HOR-024 | D31: PRJ-02 | E31: TRF-009 | F31: Carla Nogueira | G31: 2026-03-19 | H31: 21.50 | I31: Apontamento de horas — TRF-009
C32: HOR-025 | D32: PRJ-02 | E32: TRF-010 | F32: Carla Nogueira | G32: 2026-03-22 | H32: 30.00 | I32: Apontamento de horas — TRF-010
C33: HOR-026 | D33: PRJ-02 | E33: TRF-010 | F33: Carla Nogueira | G33: 2026-03-25 | H33: 30.00 | I33: Apontamento de horas — TRF-010
C34: HOR-027 | D34: PRJ-02 | E34: TRF-010 | F34: Carla Nogueira | G34: 2026-03-28 | H34: 30.00 | I34: Apontamento de horas — TRF-010
C35: HOR-028 | D35: PRJ-02 | E35: TRF-010 | F35: Carla Nogueira | G35: 2026-03-31 | H35: 30.00 | I35: Apontamento de horas — TRF-010
C36: HOR-029 | D36: PRJ-02 | E36: TRF-011 | F36: Carla Nogueira | G36: 2026-04-03 | H36: 15.00 | I36: Apontamento de horas — TRF-011
C37: HOR-030 | D37: PRJ-02 | E37: TRF-011 | F37: Carla Nogueira | G37: 2026-04-06 | H37: 15.00 | I37: Apontamento de horas — TRF-011
C38: HOR-031 | D38: PRJ-02 | E38: TRF-011 | F38: Carla Nogueira | G38: 2026-04-09 | H38: 15.00 | I38: Apontamento de horas — TRF-011
C39: HOR-032 | D39: PRJ-02 | E39: TRF-011 | F39: Carla Nogueira | G39: 2026-04-12 | H39: 15.00 | I39: Apontamento de horas — TRF-011
C40: HOR-033 | D40: PRJ-03 | E40: TRF-014 | F40: Diego Ferreira | G40: 2026-04-15 | H40: 63.75 | I40: Apontamento de horas — TRF-014
C41: HOR-034 | D41: PRJ-03 | E41: TRF-014 | F41: Diego Ferreira | G41: 2026-04-18 | H41: 63.75 | I41: Apontamento de horas — TRF-014
C42: HOR-035 | D42: PRJ-03 | E42: TRF-014 | F42: Diego Ferreira | G42: 2026-04-21 | H42: 63.75 | I42: Apontamento de horas — TRF-014
C43: HOR-036 | D43: PRJ-03 | E43: TRF-014 | F43: Diego Ferreira | G43: 2026-04-24 | H43: 63.75 | I43: Apontamento de horas — TRF-014
C44: HOR-037 | D44: PRJ-03 | E44: TRF-015 | F44: Diego Ferreira | G44: 2026-04-27 | H44: 102.50 | I44: Apontamento de horas — TRF-015
C45: HOR-038 | D45: PRJ-03 | E45: TRF-015 | F45: Diego Ferreira | G45: 2026-04-30 | H45: 102.50 | I45: Apontamento de horas — TRF-015
C46: HOR-039 | D46: PRJ-03 | E46: TRF-015 | F46: Diego Ferreira | G46: 2026-05-03 | H46: 102.50 | I46: Apontamento de horas — TRF-015
C47: HOR-040 | D47: PRJ-03 | E47: TRF-015 | F47: Diego Ferreira | G47: 2026-05-06 | H47: 102.50 | I47: Apontamento de horas — TRF-015
C48: HOR-041 | D48: PRJ-03 | E48: TRF-016 | F48: Diego Ferreira | G48: 2026-05-09 | H48: 95.00 | I48: Apontamento de horas — TRF-016
C49: HOR-042 | D49: PRJ-03 | E49: TRF-016 | F49: Diego Ferreira | G49: 2026-05-12 | H49: 95.00 | I49: Apontamento de horas — TRF-016
C50: HOR-043 | D50: PRJ-03 | E50: TRF-016 | F50: Diego Ferreira | G50: 2026-05-15 | H50: 95.00 | I50: Apontamento de horas — TRF-016
C51: HOR-044 | D51: PRJ-03 | E51: TRF-016 | F51: Diego Ferreira | G51: 2026-05-18 | H51: 95.00 | I51: Apontamento de horas — TRF-016
C52: HOR-045 | D52: PRJ-04 | E52: TRF-019 | F52: Eduarda Pires | G52: 2026-05-21 | H52: 21.00 | I52: Apontamento de horas — TRF-019
C53: HOR-046 | D53: PRJ-04 | E53: TRF-019 | F53: Eduarda Pires | G53: 2026-05-24 | H53: 21.00 | I53: Apontamento de horas — TRF-019
C54: HOR-047 | D54: PRJ-04 | E54: TRF-019 | F54: Eduarda Pires | G54: 2026-05-27 | H54: 21.00 | I54: Apontamento de horas — TRF-019
C55: HOR-048 | D55: PRJ-04 | E55: TRF-019 | F55: Eduarda Pires | G55: 2026-05-30 | H55: 21.00 | I55: Apontamento de horas — TRF-019
C56: HOR-049 | D56: PRJ-04 | E56: TRF-020 | F56: Eduarda Pires | G56: 2026-06-02 | H56: 27.50 | I56: Apontamento de horas — TRF-020
C57: HOR-050 | D57: PRJ-04 | E57: TRF-020 | F57: Eduarda Pires | G57: 2026-01-06 | H57: 27.50 | I57: Apontamento de horas — TRF-020
C58: HOR-051 | D58: PRJ-04 | E58: TRF-020 | F58: Eduarda Pires | G58: 2026-01-09 | H58: 27.50 | I58: Apontamento de horas — TRF-020
C59: HOR-052 | D59: PRJ-04 | E59: TRF-020 | F59: Eduarda Pires | G59: 2026-01-12 | H59: 27.50 | I59: Apontamento de horas — TRF-020
C60: HOR-053 | D60: PRJ-04 | E60: TRF-021 | F60: Ana Beatriz Costa | G60: 2026-01-15 | H60: 9.00 | I60: Apontamento de horas — TRF-021
C61: HOR-054 | D61: PRJ-04 | E61: TRF-021 | F61: Ana Beatriz Costa | G61: 2026-01-18 | H61: 9.00 | I61: Apontamento de horas — TRF-021
C62: HOR-055 | D62: PRJ-04 | E62: TRF-021 | F62: Ana Beatriz Costa | G62: 2026-01-21 | H62: 9.00 | I62: Apontamento de horas — TRF-021
C63: HOR-056 | D63: PRJ-04 | E63: TRF-021 | F63: Ana Beatriz Costa | G63: 2026-01-24 | H63: 9.00 | I63: Apontamento de horas — TRF-021
C64: HOR-057 | D64: PRJ-05 | E64: TRF-022 | F64: Gabriela Rocha | G64: 2026-01-27 | H64: 7.50 | I64: Apontamento de horas — TRF-022
C65: HOR-058 | D65: PRJ-05 | E65: TRF-022 | F65: Gabriela Rocha | G65: 2026-01-30 | H65: 7.50 | I65: Apontamento de horas — TRF-022
C66: HOR-059 | D66: PRJ-05 | E66: TRF-022 | F66: Gabriela Rocha | G66: 2026-02-02 | H66: 7.50 | I66: Apontamento de horas — TRF-022
C67: HOR-060 | D67: PRJ-05 | E67: TRF-022 | F67: Gabriela Rocha | G67: 2026-02-05 | H67: 7.50 | I67: Apontamento de horas — TRF-022

Sheet 10 - Financeiro (hidden)
C6: CONTROLE FINANCEIRO
C7: ID | D7: Projeto | E7: Categoria | F7: Tipo | G7: Descrição | H7: Data | I7: Valor Previsto | J7: Valor Real | K7: Diferença | L7: Responsável | M7: Observações
C8: FIN-001 | D8: PRJ-01 | E8: TI | F8: Investimento | G8: Licenças de software | H8: 2026-01-15 | I8: R$ 180,000 | J8: R$ 182,500 | K8: =tblFinanceiro[[#This Row],[Valor Real]]-tblFinanceiro[[#This Row],[Valor Previsto]] -> R$ 2,500 | L8: Bruno Martins
C9: FIN-002 | D9: PRJ-01 | E9: TI | F9: Despesa | G9: Consultoria de implantação | H9: 2026-02-28 | I9: R$ 150,000 | J9: R$ 161,000 | K9: =tblFinanceiro[[#This Row],[Valor Real]]-tblFinanceiro[[#This Row],[Valor Previsto]] -> R$ 11,000 | L9: Ana Beatriz Costa | M9: Horas extras de consultor
C10: FIN-003 | D10: PRJ-01 | E10: TI | F10: Despesa | G10: Infraestrutura de servidores | H10: 2026-03-20 | I10: R$ 80,000 | J10: R$ 74,300 | K10: =tblFinanceiro[[#This Row],[Valor Real]]-tblFinanceiro[[#This Row],[Valor Previsto]] -> (R$ 5,700) | L10: Bruno Martins
C11: FIN-004 | D11: PRJ-01 | E11: TI | F11: Despesa | G11: Treinamento de usuários | H11: 2026-08-10 | I11: R$ 70,000 | J11: 0 | K11: =tblFinanceiro[[#This Row],[Valor Real]]-tblFinanceiro[[#This Row],[Valor Previsto]] -> (R$ 70,000) | L11: Gabriela Rocha | M11: A realizar
C12: FIN-005 | D12: PRJ-02 | E12: Marketing | F12: Despesa | G12: Produção criativa | H12: 2026-02-20 | I12: R$ 60,000 | J12: R$ 58,200 | K12: =tblFinanceiro[[#This Row],[Valor Real]]-tblFinanceiro[[#This Row],[Valor Previsto]] -> (R$ 1,800) | L12: Carla Nogueira
C13: FIN-006 | D13: PRJ-02 | E13: Marketing | F13: Despesa | G13: Produção de vídeo | H13: 2026-04-25 | I13: R$ 45,000 | J13: R$ 49,800 | K13: =tblFinanceiro[[#This Row],[Valor Real]]-tblFinanceiro[[#This Row],[Valor Previsto]] -> R$ 4,800 | L13: Carla Nogueira | M13: Diária extra de gravação
C14: FIN-007 | D14: PRJ-02 | E14: Marketing | F14: Despesa | G14: Compra de mídia | H14: 2026-07-05 | I14: R$ 45,000 | J14: 0 | K14: =tblFinanceiro[[#This Row],[Valor Real]]-tblFinanceiro[[#This Row],[Valor Previsto]] -> (R$ 45,000) | L14: Henrique Dias | M14: A realizar
C15: FIN-008 | D15: PRJ-03 | E15: Construção | F15: Despesa | G15: Terraplanagem | H15: 2025-12-15 | I15: R$ 300,000 | J15: R$ 296,000 | K15: =tblFinanceiro[[#This Row],[Valor Real]]-tblFinanceiro[[#This Row],[Valor Previsto]] -> (R$ 4,000) | L15: Diego Ferreira
C16: FIN-009 | D16: PRJ-03 | E16: Construção | F16: Despesa | G16: Fundação e concreto | H16: 2026-02-28 | I16: R$ 700,000 | J16: R$ 742,000 | K16: =tblFinanceiro[[#This Row],[Valor Real]]-tblFinanceiro[[#This Row],[Valor Previsto]] -> R$ 42,000 | L16: Diego Ferreira | M16: Reajuste de insumos
C17: FIN-010 | D17: PRJ-03 | E17: Construção | F17: Investimento | G17: Estrutura metálica | H17: 2026-04-15 | I17: R$ 900,000 | J17: R$ 880,500 | K17: =tblFinanceiro[[#This Row],[Valor Real]]-tblFinanceiro[[#This Row],[Valor Previsto]] -> (R$ 19,500) | L17: Diego Ferreira
C18: FIN-011 | D18: PRJ-03 | E18: Construção | F18: Despesa | G18: Cobertura e acabamentos | H18: 2026-06-10 | I18: R$ 300,000 | J18: 0 | K18: =tblFinanceiro[[#This Row],[Valor Real]]-tblFinanceiro[[#This Row],[Valor Previsto]] -> (R$ 300,000) | L18: Diego Ferreira | M18: A realizar
C19: FIN-012 | D19: PRJ-04 | E19: Financeiro | F19: Despesa | G19: Consultoria orçamentária | H19: 2026-02-20 | I19: R$ 60,000 | J19: R$ 57,500 | K19: =tblFinanceiro[[#This Row],[Valor Real]]-tblFinanceiro[[#This Row],[Valor Previsto]] -> (R$ 2,500) | L19: Eduarda Pires
C20: FIN-013 | D20: PRJ-04 | E20: Financeiro | F20: Despesa | G20: Ferramenta de BI | H20: 2026-03-15 | I20: R$ 30,000 | J20: R$ 28,900 | K20: =tblFinanceiro[[#This Row],[Valor Real]]-tblFinanceiro[[#This Row],[Valor Previsto]] -> (R$ 1,100) | L20: Eduarda Pires
C21: FIN-014 | D21: PRJ-05 | E21: RH | F21: Despesa | G21: Material didático | H21: 2026-03-15 | I21: R$ 25,000 | J21: R$ 12,000 | K21: =tblFinanceiro[[#This Row],[Valor Real]]-tblFinanceiro[[#This Row],[Valor Previsto]] -> (R$ 13,000) | L21: Gabriela Rocha | M21: Parcial — projeto pausado
C22: FIN-015 | D22: PRJ-05 | E22: RH | F22: Despesa | G22: Instrutores externos | H22: 2026-04-20 | I22: R$ 35,000 | J22: 0 | K22: =tblFinanceiro[[#This Row],[Valor Real]]-tblFinanceiro[[#This Row],[Valor Previsto]] -> (R$ 35,000) | L22: Gabriela Rocha | M22: Suspenso
C23: FIN-016 | D23: PRJ-06 | E23: Desenvolvimento | F23: Investimento | G23: Squad de desenvolvimento | H23: 2026-07-30 | I23: R$ 240,000 | J23: 0 | K23: =tblFinanceiro[[#This Row],[Valor Real]]-tblFinanceiro[[#This Row],[Valor Previsto]] -> (R$ 240,000) | L23: Felipe Andrade | M23: A iniciar
C24: FIN-017 | D24: PRJ-06 | E24: Desenvolvimento | F24: Despesa | G24: UX e design do portal | H24: 2026-08-15 | I24: R$ 80,000 | J24: 0 | K24: =tblFinanceiro[[#This Row],[Valor Real]]-tblFinanceiro[[#This Row],[Valor Previsto]] -> (R$ 80,000) | L24: Carla Nogueira | M24: A iniciar
C25: FIN-018 | D25: PRJ-04 | E25: Financeiro | F25: Receita | G25: Faturamento do projeto | H25: 2026-04-30 | I25: R$ 120,000 | J25: R$ 120,000 | K25: =tblFinanceiro[[#This Row],[Valor Real]]-tblFinanceiro[[#This Row],[Valor Previsto]] -> 0 | L25: Ana Beatriz Costa | M25: Recebido
C26: FIN-019 | D26: PRJ-02 | E26: Marketing | F26: Receita | G26: Faturamento parcial | H26: 2026-05-31 | I26: R$ 90,000 | J26: R$ 90,000 | K26: =tblFinanceiro[[#This Row],[Valor Real]]-tblFinanceiro[[#This Row],[Valor Previsto]] -> 0 | L26: Ana Beatriz Costa | M26: 1ª parcela
C27: FIN-020 | D27: PRJ-01 | E27: TI | F27: Receita | G27: Faturamento marco 1 | H27: 2026-02-28 | I27: R$ 200,000 | J27: R$ 200,000 | K27: =tblFinanceiro[[#This Row],[Valor Real]]-tblFinanceiro[[#This Row],[Valor Previsto]] -> 0 | L27: Ana Beatriz Costa | M27: Recebido

Sheet 11 - Gantt (hidden)
C5: Data base do cronograma: | E5: =DATE(2026,1,1) -> 2026-01-01 | F5: ← altere para deslocar a janela de 120 dias
C6: CRONOGRAMA / GANTT | K6: =IF(OR(0=0,DAY($E$5+0)=1),TEXT($E$5+0,"mmm/yy"),"") -> Jan/26 | L6: =IF(OR(1=0,DAY($E$5+1)=1),TEXT($E$5+1,"mmm/yy"),"") ->  | M6: =IF(OR(2=0,DAY($E$5+2)=1),TEXT($E$5+2,"mmm/yy"),"") ->  | N6: =IF(OR(3=0,DAY($E$5+3)=1),TEXT($E$5+3,"mmm/yy"),"") ->  | O6: =IF(OR(4=0,DAY($E$5+4)=1),TEXT($E$5+4,"mmm/yy"),"") ->  | P6: =IF(OR(5=0,DAY($E$5+5)=1),TEXT($E$5+5,"mmm/yy"),"") ->  | Q6: =IF(OR(6=0,DAY($E$5+6)=1),TEXT($E$5+6,"mmm/yy"),"") ->  | R6: =IF(OR(7=0,DAY($E$5+7)=1),TEXT($E$5+7,"mmm/yy"),"") ->  | S6: =IF(OR(8=0,DAY($E$5+8)=1),TEXT($E$5+8,"mmm/yy"),"") ->  | T6: =IF(OR(9=0,DAY($E$5+9)=1),TEXT($E$5+9,"mmm/yy"),"") ->  | U6: =IF(OR(10=0,DAY($E$5+10)=1),TEXT($E$5+10,"mmm/yy"),"") ->  | V6: =IF(OR(11=0,DAY($E$5+11)=1),TEXT($E$5+11,"mmm/yy"),"") ->  | W6: =IF(OR(12=0,DAY($E$5+12)=1),TEXT($E$5+12,"mmm/yy"),"") ->  | X6: =IF(OR(13=0,DAY($E$5+13)=1),TEXT($E$5+13,"mmm/yy"),"") ->  | Y6: =IF(OR(14=0,DAY($E$5+14)=1),TEXT($E$5+14,"mmm/yy"),"") ->  | Z6: =IF(OR(15=0,DAY($E$5+15)=1),TEXT($E$5+15,"mmm/yy"),"") ->  | AA6: =IF(OR(16=0,DAY($E$5+16)=1),TEXT($E$5+16,"mmm/yy"),"") ->  | AB6: =IF(OR(17=0,DAY($E$5+17)=1),TEXT($E$5+17,"mmm/yy"),"") ->  | AC6: =IF(OR(18=0,DAY($E$5+18)=1),TEXT($E$5+18,"mmm/yy"),"") ->  | AD6: =IF(OR(19=0,DAY($E$5+19)=1),TEXT($E$5+19,"mmm/yy"),"") ->  | AE6: =IF(OR(20=0,DAY($E$5+20)=1),TEXT($E$5+20,"mmm/yy"),"") ->  | AF6: =IF(OR(21=0,DAY($E$5+21)=1),TEXT($E$5+21,"mmm/yy"),"") ->  | AG6: =IF(OR(22=0,DAY($E$5+22)=1),TEXT($E$5+22,"mmm/yy"),"") ->  | AH6: =IF(OR(23=0,DAY($E$5+23)=1),TEXT($E$5+23,"mmm/yy"),"") ->  | AI6: =IF(OR(24=0,DAY($E$5+24)=1),TEXT($E$5+24,"mmm/yy"),"") ->  | AJ6: =IF(OR(25=0,DAY($E$5+25)=1),TEXT($E$5+25,"mmm/yy"),"") ->  | AK6: =IF(OR(26=0,DAY($E$5+26)=1),TEXT($E$5+26,"mmm/yy"),"") ->  | AL6: =IF(OR(27=0,DAY($E$5+27)=1),TEXT($E$5+27,"mmm/yy"),"") ->  | AM6: =IF(OR(28=0,DAY($E$5+28)=1),TEXT($E$5+28,"mmm/yy"),"") ->  | AN6: =IF(OR(29=0,DAY($E$5+29)=1),TEXT($E$5+29,"mmm/yy"),"") ->  | AO6: =IF(OR(30=0,DAY($E$5+30)=1),TEXT($E$5+30,"mmm/yy"),"") ->  | AP6: =IF(OR(31=0,DAY($E$5+31)=1),TEXT($E$5+31,"mmm/yy"),"") -> Feb/26 | AQ6: =IF(OR(32=0,DAY($E$5+32)=1),TEXT($E$5+32,"mmm/yy"),"") ->  | AR6: =IF(OR(33=0,DAY($E$5+33)=1),TEXT($E$5+33,"mmm/yy"),"") ->  | AS6: =IF(OR(34=0,DAY($E$5+34)=1),TEXT($E$5+34,"mmm/yy"),"") ->  | AT6: =IF(OR(35=0,DAY($E$5+35)=1),TEXT($E$5+35,"mmm/yy"),"") ->  | AU6: =IF(OR(36=0,DAY($E$5+36)=1),TEXT($E$5+36,"mmm/yy"),"") ->  | AV6: =IF(OR(37=0,DAY($E$5+37)=1),TEXT($E$5+37,"mmm/yy"),"") ->  | AW6: =IF(OR(38=0,DAY($E$5+38)=1),TEXT($E$5+38,"mmm/yy"),"") ->  | AX6: =IF(OR(39=0,DAY($E$5+39)=1),TEXT($E$5+39,"mmm/yy"),"") ->  | AY6: =IF(OR(40=0,DAY($E$5+40)=1),TEXT($E$5+40,"mmm/yy"),"") ->  | AZ6: =IF(OR(41=0,DAY($E$5+41)=1),TEXT($E$5+41,"mmm/yy"),"") ->  | BA6: =IF(OR(42=0,DAY($E$5+42)=1),TEXT($E$5+42,"mmm/yy"),"") ->  | BB6: =IF(OR(43=0,DAY($E$5+43)=1),TEXT($E$5+43,"mmm/yy"),"") ->  | BC6: =IF(OR(44=0,DAY($E$5+44)=1),TEXT($E$5+44,"mmm/yy"),"") ->  | BD6: =IF(OR(45=0,DAY($E$5+45)=1),TEXT($E$5+45,"mmm/yy"),"") ->  | BE6: =IF(OR(46=0,DAY($E$5+46)=1),TEXT($E$5+46,"mmm/yy"),"") ->  | BF6: =IF(OR(47=0,DAY($E$5+47)=1),TEXT($E$5+47,"mmm/yy"),"") ->  | BG6: =IF(OR(48=0,DAY($E$5+48)=1),TEXT($E$5+48,"mmm/yy"),"") ->  | BH6: =IF(OR(49=0,DAY($E$5+49)=1),TEXT($E$5+49,"mmm/yy"),"") ->  | BI6: =IF(OR(50=0,DAY($E$5+50)=1),TEXT($E$5+50,"mmm/yy"),"") ->  | BJ6: =IF(OR(51=0,DAY($E$5+51)=1),TEXT($E$5+51,"mmm/yy"),"") ->  | BK6: =IF(OR(52=0,DAY($E$5+52)=1),TEXT($E$5+52,"mmm/yy"),"") ->  | BL6: =IF(OR(53=0,DAY($E$5+53)=1),TEXT($E$5+53,"mmm/yy"),"") ->  | BM6: =IF(OR(54=0,DAY($E$5+54)=1),TEXT($E$5+54,"mmm/yy"),"") ->  | BN6: =IF(OR(55=0,DAY($E$5+55)=1),TEXT($E$5+55,"mmm/yy"),"") ->  | BO6: =IF(OR(56=0,DAY($E$5+56)=1),TEXT($E$5+56,"mmm/yy"),"") ->  | BP6: =IF(OR(57=0,DAY($E$5+57)=1),TEXT($E$5+57,"mmm/yy"),"") ->  | BQ6: =IF(OR(58=0,DAY($E$5+58)=1),TEXT($E$5+58,"mmm/yy"),"") ->  | BR6: =IF(OR(59=0,DAY($E$5+59)=1),TEXT($E$5+59,"mmm/yy"),"") -> Mar/26 | BS6: =IF(OR(60=0,DAY($E$5+60)=1),TEXT($E$5+60,"mmm/yy"),"") ->  | BT6: =IF(OR(61=0,DAY($E$5+61)=1),TEXT($E$5+61,"mmm/yy"),"") ->  | BU6: =IF(OR(62=0,DAY($E$5+62)=1),TEXT($E$5+62,"mmm/yy"),"") ->  | BV6: =IF(OR(63=0,DAY($E$5+63)=1),TEXT($E$5+63,"mmm/yy"),"") ->  | BW6: =IF(OR(64=0,DAY($E$5+64)=1),TEXT($E$5+64,"mmm/yy"),"") ->  | BX6: =IF(OR(65=0,DAY($E$5+65)=1),TEXT($E$5+65,"mmm/yy"),"") ->  | BY6: =IF(OR(66=0,DAY($E$5+66)=1),TEXT($E$5+66,"mmm/yy"),"") ->  | BZ6: =IF(OR(67=0,DAY($E$5+67)=1),TEXT($E$5+67,"mmm/yy"),"") ->  | CA6: =IF(OR(68=0,DAY($E$5+68)=1),TEXT($E$5+68,"mmm/yy"),"") ->  | CB6: =IF(OR(69=0,DAY($E$5+69)=1),TEXT($E$5+69,"mmm/yy"),"") ->  | CC6: =IF(OR(70=0,DAY($E$5+70)=1),TEXT($E$5+70,"mmm/yy"),"") ->  | CD6: =IF(OR(71=0,DAY($E$5+71)=1),TEXT($E$5+71,"mmm/yy"),"") ->  | CE6: =IF(OR(72=0,DAY($E$5+72)=1),TEXT($E$5+72,"mmm/yy"),"") ->  | CF6: =IF(OR(73=0,DAY($E$5+73)=1),TEXT($E$5+73,"mmm/yy"),"") ->  | CG6: =IF(OR(74=0,DAY($E$5+74)=1),TEXT($E$5+74,"mmm/yy"),"") ->  | CH6: =IF(OR(75=0,DAY($E$5+75)=1),TEXT($E$5+75,"mmm/yy"),"") ->  | CI6: =IF(OR(76=0,DAY($E$5+76)=1),TEXT($E$5+76,"mmm/yy"),"") ->  | CJ6: =IF(OR(77=0,DAY($E$5+77)=1),TEXT($E$5+77,"mmm/yy"),"") ->  | CK6: =IF(OR(78=0,DAY($E$5+78)=1),TEXT($E$5+78,"mmm/yy"),"") ->  | CL6: =IF(OR(79=0,DAY($E$5+79)=1),TEXT($E$5+79,"mmm/yy"),"") ->  | CM6: =IF(OR(80=0,DAY($E$5+80)=1),TEXT($E$5+80,"mmm/yy"),"") ->  | CN6: =IF(OR(81=0,DAY($E$5+81)=1),TEXT($E$5+81,"mmm/yy"),"") ->  | CO6: =IF(OR(82=0,DAY($E$5+82)=1),TEXT($E$5+82,"mmm/yy"),"") ->  | CP6: =IF(OR(83=0,DAY($E$5+83)=1),TEXT($E$5+83,"mmm/yy"),"") ->  | CQ6: =IF(OR(84=0,DAY($E$5+84)=1),TEXT($E$5+84,"mmm/yy"),"") ->  | CR6: =IF(OR(85=0,DAY($E$5+85)=1),TEXT($E$5+85,"mmm/yy"),"") ->  | CS6: =IF(OR(86=0,DAY($E$5+86)=1),TEXT($E$5+86,"mmm/yy"),"") ->  | CT6: =IF(OR(87=0,DAY($E$5+87)=1),TEXT($E$5+87,"mmm/yy"),"") ->  | CU6: =IF(OR(88=0,DAY($E$5+88)=1),TEXT($E$5+88,"mmm/yy"),"") ->  | CV6: =IF(OR(89=0,DAY($E$5+89)=1),TEXT($E$5+89,"mmm/yy"),"") ->  | CW6: =IF(OR(90=0,DAY($E$5+90)=1),TEXT($E$5+90,"mmm/yy"),"") -> Apr/26 | CX6: =IF(OR(91=0,DAY($E$5+91)=1),TEXT($E$5+91,"mmm/yy"),"") ->  | CY6: =IF(OR(92=0,DAY($E$5+92)=1),TEXT($E$5+92,"mmm/yy"),"") ->  | CZ6: =IF(OR(93=0,DAY($E$5+93)=1),TEXT($E$5+93,"mmm/yy"),"") ->  | DA6: =IF(OR(94=0,DAY($E$5+94)=1),TEXT($E$5+94,"mmm/yy"),"") ->  | DB6: =IF(OR(95=0,DAY($E$5+95)=1),TEXT($E$5+95,"mmm/yy"),"") ->  | DC6: =IF(OR(96=0,DAY($E$5+96)=1),TEXT($E$5+96,"mmm/yy"),"") ->  | DD6: =IF(OR(97=0,DAY($E$5+97)=1),TEXT($E$5+97,"mmm/yy"),"") ->  | DE6: =IF(OR(98=0,DAY($E$5+98)=1),TEXT($E$5+98,"mmm/yy"),"") ->  | DF6: =IF(OR(99=0,DAY($E$5+99)=1),TEXT($E$5+99,"mmm/yy"),"") ->  | DG6: =IF(OR(100=0,DAY($E$5+100)=1),TEXT($E$5+100,"mmm/yy"),"") ->  | DH6: =IF(OR(101=0,DAY($E$5+101)=1),TEXT($E$5+101,"mmm/yy"),"") ->  | DI6: =IF(OR(102=0,DAY($E$5+102)=1),TEXT($E$5+102,"mmm/yy"),"") ->  | DJ6: =IF(OR(103=0,DAY($E$5+103)=1),TEXT($E$5+103,"mmm/yy"),"") ->  | DK6: =IF(OR(104=0,DAY($E$5+104)=1),TEXT($E$5+104,"mmm/yy"),"") ->  | DL6: =IF(OR(105=0,DAY($E$5+105)=1),TEXT($E$5+105,"mmm/yy"),"") ->  | DM6: =IF(OR(106=0,DAY($E$5+106)=1),TEXT($E$5+106,"mmm/yy"),"") ->  | DN6: =IF(OR(107=0,DAY($E$5+107)=1),TEXT($E$5+107,"mmm/yy"),"") ->  | DO6: =IF(OR(108=0,DAY($E$5+108)=1),TEXT($E$5+108,"mmm/yy"),"") ->  | DP6: =IF(OR(109=0,DAY($E$5+109)=1),TEXT($E$5+109,"mmm/yy"),"") ->  | DQ6: =IF(OR(110=0,DAY($E$5+110)=1),TEXT($E$5+110,"mmm/yy"),"") ->  | DR6: =IF(OR(111=0,DAY($E$5+111)=1),TEXT($E$5+111,"mmm/yy"),"") ->  | DS6: =IF(OR(112=0,DAY($E$5+112)=1),TEXT($E$5+112,"mmm/yy"),"") ->  | DT6: =IF(OR(113=0,DAY($E$5+113)=1),TEXT($E$5+113,"mmm/yy"),"") ->  | DU6: =IF(OR(114=0,DAY($E$5+114)=1),TEXT($E$5+114,"mmm/yy"),"") ->  | DV6: =IF(OR(115=0,DAY($E$5+115)=1),TEXT($E$5+115,"mmm/yy"),"") ->  | DW6: =IF(OR(116=0,DAY($E$5+116)=1),TEXT($E$5+116,"mmm/yy"),"") ->  | DX6: =IF(OR(117=0,DAY($E$5+117)=1),TEXT($E$5+117,"mmm/yy"),"") ->  | DY6: =IF(OR(118=0,DAY($E$5+118)=1),TEXT($E$5+118,"mmm/yy"),"") ->  | DZ6: =IF(OR(119=0,DAY($E$5+119)=1),TEXT($E$5+119,"mmm/yy"),"") -> 
C7: Projeto | D7: Tarefa | E7: Responsável | F7: Status | G7: Início | H7: Fim | I7: Dias | J7: % | K7: =$E$5+0 -> 2026-01-01 | L7: =$E$5+1 -> 2026-01-02 | M7: =$E$5+2 -> 2026-01-03 | N7: =$E$5+3 -> 2026-01-04 | O7: =$E$5+4 -> 2026-01-05 | P7: =$E$5+5 -> 2026-01-06 | Q7: =$E$5+6 -> 2026-01-07 | R7: =$E$5+7 -> 2026-01-08 | S7: =$E$5+8 -> 2026-01-09 | T7: =$E$5+9 -> 2026-01-10 | U7: =$E$5+10 -> 2026-01-11 | V7: =$E$5+11 -> 2026-01-12 | W7: =$E$5+12 -> 2026-01-13 | X7: =$E$5+13 -> 2026-01-14 | Y7: =$E$5+14 -> 2026-01-15 | Z7: =$E$5+15 -> 2026-01-16 | AA7: =$E$5+16 -> 2026-01-17 | AB7: =$E$5+17 -> 2026-01-18 | AC7: =$E$5+18 -> 2026-01-19 | AD7: =$E$5+19 -> 2026-01-20 | AE7: =$E$5+20 -> 2026-01-21 | AF7: =$E$5+21 -> 2026-01-22 | AG7: =$E$5+22 -> 2026-01-23 | AH7: =$E$5+23 -> 2026-01-24 | AI7: =$E$5+24 -> 2026-01-25 | AJ7: =$E$5+25 -> 2026-01-26 | AK7: =$E$5+26 -> 2026-01-27 | AL7: =$E$5+27 -> 2026-01-28 | AM7: =$E$5+28 -> 2026-01-29 | AN7: =$E$5+29 -> 2026-01-30 | AO7: =$E$5+30 -> 2026-01-31 | AP7: =$E$5+31 -> 2026-02-01 | AQ7: =$E$5+32 -> 2026-02-02 | AR7: =$E$5+33 -> 2026-02-03 | AS7: =$E$5+34 -> 2026-02-04 | AT7: =$E$5+35 -> 2026-02-05 | AU7: =$E$5+36 -> 2026-02-06 | AV7: =$E$5+37 -> 2026-02-07 | AW7: =$E$5+38 -> 2026-02-08 | AX7: =$E$5+39 -> 2026-02-09 | AY7: =$E$5+40 -> 2026-02-10 | AZ7: =$E$5+41 -> 2026-02-11 | BA7: =$E$5+42 -> 2026-02-12 | BB7: =$E$5+43 -> 2026-02-13 | BC7: =$E$5+44 -> 2026-02-14 | BD7: =$E$5+45 -> 2026-02-15 | BE7: =$E$5+46 -> 2026-02-16 | BF7: =$E$5+47 -> 2026-02-17 | BG7: =$E$5+48 -> 2026-02-18 | BH7: =$E$5+49 -> 2026-02-19 | BI7: =$E$5+50 -> 2026-02-20 | BJ7: =$E$5+51 -> 2026-02-21 | BK7: =$E$5+52 -> 2026-02-22 | BL7: =$E$5+53 -> 2026-02-23 | BM7: =$E$5+54 -> 2026-02-24 | BN7: =$E$5+55 -> 2026-02-25 | BO7: =$E$5+56 -> 2026-02-26 | BP7: =$E$5+57 -> 2026-02-27 | BQ7: =$E$5+58 -> 2026-02-28 | BR7: =$E$5+59 -> 2026-03-01 | BS7: =$E$5+60 -> 2026-03-02 | BT7: =$E$5+61 -> 2026-03-03 | BU7: =$E$5+62 -> 2026-03-04 | BV7: =$E$5+63 -> 2026-03-05 | BW7: =$E$5+64 -> 2026-03-06 | BX7: =$E$5+65 -> 2026-03-07 | BY7: =$E$5+66 -> 2026-03-08 | BZ7: =$E$5+67 -> 2026-03-09 | CA7: =$E$5+68 -> 2026-03-10 | CB7: =$E$5+69 -> 2026-03-11 | CC7: =$E$5+70 -> 2026-03-12 | CD7: =$E$5+71 -> 2026-03-13 | CE7: =$E$5+72 -> 2026-03-14 | CF7: =$E$5+73 -> 2026-03-15 | CG7: =$E$5+74 -> 2026-03-16 | CH7: =$E$5+75 -> 2026-03-17 | CI7: =$E$5+76 -> 2026-03-18 | CJ7: =$E$5+77 -> 2026-03-19 | CK7: =$E$5+78 -> 2026-03-20 | CL7: =$E$5+79 -> 2026-03-21 | CM7: =$E$5+80 -> 2026-03-22 | CN7: =$E$5+81 -> 2026-03-23 | CO7: =$E$5+82 -> 2026-03-24 | CP7: =$E$5+83 -> 2026-03-25 | CQ7: =$E$5+84 -> 2026-03-26 | CR7: =$E$5+85 -> 2026-03-27 | CS7: =$E$5+86 -> 2026-03-28 | CT7: =$E$5+87 -> 2026-03-29 | CU7: =$E$5+88 -> 2026-03-30 | CV7: =$E$5+89 -> 2026-03-31 | CW7: =$E$5+90 -> 2026-04-01 | CX7: =$E$5+91 -> 2026-04-02 | CY7: =$E$5+92 -> 2026-04-03 | CZ7: =$E$5+93 -> 2026-04-04 | DA7: =$E$5+94 -> 2026-04-05 | DB7: =$E$5+95 -> 2026-04-06 | DC7: =$E$5+96 -> 2026-04-07 | DD7: =$E$5+97 -> 2026-04-08 | DE7: =$E$5+98 -> 2026-04-09 | DF7: =$E$5+99 -> 2026-04-10 | DG7: =$E$5+100 -> 2026-04-11 | DH7: =$E$5+101 -> 2026-04-12 | DI7: =$E$5+102 -> 2026-04-13 | DJ7: =$E$5+103 -> 2026-04-14 | DK7: =$E$5+104 -> 2026-04-15 | DL7: =$E$5+105 -> 2026-04-16 | DM7: =$E$5+106 -> 2026-04-17 | DN7: =$E$5+107 -> 2026-04-18 | DO7: =$E$5+108 -> 2026-04-19 | DP7: =$E$5+109 -> 2026-04-20 | DQ7: =$E$5+110 -> 2026-04-21 | DR7: =$E$5+111 -> 2026-04-22 | DS7: =$E$5+112 -> 2026-04-23 | DT7: =$E$5+113 -> 2026-04-24 | DU7: =$E$5+114 -> 2026-04-25 | DV7: =$E$5+115 -> 2026-04-26 | DW7: =$E$5+116 -> 2026-04-27 | DX7: =$E$5+117 -> 2026-04-28 | DY7: =$E$5+118 -> 2026-04-29 | DZ7: =$E$5+119 -> 2026-04-30
C8: =IFERROR(INDEX(tblTarefas[Projeto],1),"") -> PRJ-01 | D8: =IFERROR(INDEX(tblTarefas[Título],1),"") -> Mapear processos atuais | E8: =IFERROR(INDEX(tblTarefas[Responsável],1),"") -> Bruno Martins | F8: =IFERROR(INDEX(tblTarefas[Status],1),"") -> Concluída | G8: =IFERROR(INDEX(tblTarefas[Data Início],1),"") -> 2026-01-05 | H8: =IFERROR(INDEX(tblTarefas[Data Prevista],1),"") -> 2026-01-23 | I8: =IFERROR(INDEX(tblTarefas[Dias Previstos],1),"") -> 19 | J8: =IFERROR(INDEX(tblTarefas[Percentual],1),"") -> 100%
C9: =IFERROR(INDEX(tblTarefas[Projeto],2),"") -> PRJ-01 | D9: =IFERROR(INDEX(tblTarefas[Título],2),"") -> Documentar requisitos | E9: =IFERROR(INDEX(tblTarefas[Responsável],2),"") -> Bruno Martins | F9: =IFERROR(INDEX(tblTarefas[Status],2),"") -> Concluída | G9: =IFERROR(INDEX(tblTarefas[Data Início],2),"") -> 2026-01-26 | H9: =IFERROR(INDEX(tblTarefas[Data Prevista],2),"") -> 2026-02-13 | I9: =IFERROR(INDEX(tblTarefas[Dias Previstos],2),"") -> 19 | J9: =IFERROR(INDEX(tblTarefas[Percentual],2),"") -> 100%
C10: =IFERROR(INDEX(tblTarefas[Projeto],3),"") -> PRJ-01 | D10: =IFERROR(INDEX(tblTarefas[Título],3),"") -> Parametrizar módulo financeiro | E10: =IFERROR(INDEX(tblTarefas[Responsável],3),"") -> Eduarda Pires | F10: =IFERROR(INDEX(tblTarefas[Status],3),"") -> Em andamento | G10: =IFERROR(INDEX(tblTarefas[Data Início],3),"") -> 2026-02-17 | H10: =IFERROR(INDEX(tblTarefas[Data Prevista],3),"") -> 2026-04-10 | I10: =IFERROR(INDEX(tblTarefas[Dias Previstos],3),"") -> 53 | J10: =IFERROR(INDEX(tblTarefas[Percentual],3),"") -> 88%
C11: =IFERROR(INDEX(tblTarefas[Projeto],4),"") -> PRJ-01 | D11: =IFERROR(INDEX(tblTarefas[Título],4),"") -> Parametrizar módulo estoque | E11: =IFERROR(INDEX(tblTarefas[Responsável],4),"") -> Bruno Martins | F11: =IFERROR(INDEX(tblTarefas[Status],4),"") -> Em andamento | G11: =IFERROR(INDEX(tblTarefas[Data Início],4),"") -> 2026-03-02 | H11: =IFERROR(INDEX(tblTarefas[Data Prevista],4),"") -> 2026-05-15 | I11: =IFERROR(INDEX(tblTarefas[Dias Previstos],4),"") -> 75 | J11: =IFERROR(INDEX(tblTarefas[Percentual],4),"") -> 50%
C12: =IFERROR(INDEX(tblTarefas[Projeto],5),"") -> PRJ-01 | D12: =IFERROR(INDEX(tblTarefas[Título],5),"") -> Migração de dados legados | E12: =IFERROR(INDEX(tblTarefas[Responsável],5),"") -> Felipe Andrade | F12: =IFERROR(INDEX(tblTarefas[Status],5),"") -> Não iniciada | G12: =IFERROR(INDEX(tblTarefas[Data Início],5),"") -> 2026-06-01 | H12: =IFERROR(INDEX(tblTarefas[Data Prevista],5),"") -> 2026-07-31 | I12: =IFERROR(INDEX(tblTarefas[Dias Previstos],5),"") -> 61 | J12: =IFERROR(INDEX(tblTarefas[Percentual],5),"") -> 0%
C13: =IFERROR(INDEX(tblTarefas[Projeto],6),"") -> PRJ-01 | D13: =IFERROR(INDEX(tblTarefas[Título],6),"") -> Treinamento de usuários | E13: =IFERROR(INDEX(tblTarefas[Responsável],6),"") -> Gabriela Rocha | F13: =IFERROR(INDEX(tblTarefas[Status],6),"") -> Não iniciada | G13: =IFERROR(INDEX(tblTarefas[Data Início],6),"") -> 2026-08-03 | H13: =IFERROR(INDEX(tblTarefas[Data Prevista],6),"") -> 2026-08-28 | I13: =IFERROR(INDEX(tblTarefas[Dias Previstos],6),"") -> 26 | J13: =IFERROR(INDEX(tblTarefas[Percentual],6),"") -> 0%
C14: =IFERROR(INDEX(tblTarefas[Projeto],7),"") -> PRJ-01 | D14: =IFERROR(INDEX(tblTarefas[Título],7),"") -> Go-live e suporte | E14: =IFERROR(INDEX(tblTarefas[Responsável],7),"") -> Bruno Martins | F14: =IFERROR(INDEX(tblTarefas[Status],7),"") -> Não iniciada | G14: =IFERROR(INDEX(tblTarefas[Data Início],7),"") -> 2026-08-31 | H14: =IFERROR(INDEX(tblTarefas[Data Prevista],7),"") -> 2026-09-30 | I14: =IFERROR(INDEX(tblTarefas[Dias Previstos],7),"") -> 31 | J14: =IFERROR(INDEX(tblTarefas[Percentual],7),"") -> 0%
C15: =IFERROR(INDEX(tblTarefas[Projeto],8),"") -> PRJ-02 | D15: =IFERROR(INDEX(tblTarefas[Título],8),"") -> Briefing com cliente | E15: =IFERROR(INDEX(tblTarefas[Responsável],8),"") -> Carla Nogueira | F15: =IFERROR(INDEX(tblTarefas[Status],8),"") -> Concluída | G15: =IFERROR(INDEX(tblTarefas[Data Início],8),"") -> 2026-02-02 | H15: =IFERROR(INDEX(tblTarefas[Data Prevista],8),"") -> 2026-02-13 | I15: =IFERROR(INDEX(tblTarefas[Dias Previstos],8),"") -> 12 | J15: =IFERROR(INDEX(tblTarefas[Percentual],8),"") -> 100%
C16: =IFERROR(INDEX(tblTarefas[Projeto],9),"") -> PRJ-02 | D16: =IFERROR(INDEX(tblTarefas[Título],9),"") -> Desenvolver conceito criativo | E16: =IFERROR(INDEX(tblTarefas[Responsável],9),"") -> Carla Nogueira | F16: =IFERROR(INDEX(tblTarefas[Status],9),"") -> Concluída | G16: =IFERROR(INDEX(tblTarefas[Data Início],9),"") -> 2026-02-16 | H16: =IFERROR(INDEX(tblTarefas[Data Prevista],9),"") -> 2026-03-13 | I16: =IFERROR(INDEX(tblTarefas[Dias Previstos],9),"") -> 26 | J16: =IFERROR(INDEX(tblTarefas[Percentual],9),"") -> 100%
C17: =IFERROR(INDEX(tblTarefas[Projeto],10),"") -> PRJ-02 | D17: =IFERROR(INDEX(tblTarefas[Título],10),"") -> Produzir peças gráficas | E17: =IFERROR(INDEX(tblTarefas[Responsável],10),"") -> Carla Nogueira | F17: =IFERROR(INDEX(tblTarefas[Status],10),"") -> Em andamento | G17: =IFERROR(INDEX(tblTarefas[Data Início],10),"") -> 2026-03-16 | H17: =IFERROR(INDEX(tblTarefas[Data Prevista],10),"") -> 2026-05-29 | I17: =IFERROR(INDEX(tblTarefas[Dias Previstos],10),"") -> 75 | J17: =IFERROR(INDEX(tblTarefas[Percentual],10),"") -> 75%
C18: =IFERROR(INDEX(tblTarefas[Projeto],11),"") -> PRJ-02 | D18: =IFERROR(INDEX(tblTarefas[Título],11),"") -> Produzir vídeo institucional | E18: =IFERROR(INDEX(tblTarefas[Responsável],11),"") -> Carla Nogueira | F18: =IFERROR(INDEX(tblTarefas[Status],11),"") -> Em andamento | G18: =IFERROR(INDEX(tblTarefas[Data Início],11),"") -> 2026-04-06 | H18: =IFERROR(INDEX(tblTarefas[Data Prevista],11),"") -> 2026-06-15 | I18: =IFERROR(INDEX(tblTarefas[Dias Previstos],11),"") -> 71 | J18: =IFERROR(INDEX(tblTarefas[Percentual],11),"") -> 50%
C19: =IFERROR(INDEX(tblTarefas[Projeto],12),"") -> PRJ-02 | D19: =IFERROR(INDEX(tblTarefas[Título],12),"") -> Plano de mídia | E19: =IFERROR(INDEX(tblTarefas[Responsável],12),"") -> Henrique Dias | F19: =IFERROR(INDEX(tblTarefas[Status],12),"") -> Aguardando | G19: =IFERROR(INDEX(tblTarefas[Data Início],12),"") -> 2026-06-01 | H19: =IFERROR(INDEX(tblTarefas[Data Prevista],12),"") -> 2026-06-26 | I19: =IFERROR(INDEX(tblTarefas[Dias Previstos],12),"") -> 26 | J19: =IFERROR(INDEX(tblTarefas[Percentual],12),"") -> 0%
C20: =IFERROR(INDEX(tblTarefas[Projeto],13),"") -> PRJ-02 | D20: =IFERROR(INDEX(tblTarefas[Título],13),"") -> Veicular campanha | E20: =IFERROR(INDEX(tblTarefas[Responsável],13),"") -> Henrique Dias | F20: =IFERROR(INDEX(tblTarefas[Status],13),"") -> Não iniciada | G20: =IFERROR(INDEX(tblTarefas[Data Início],13),"") -> 2026-07-01 | H20: =IFERROR(INDEX(tblTarefas[Data Prevista],13),"") -> 2026-07-31 | I20: =IFERROR(INDEX(tblTarefas[Dias Previstos],13),"") -> 31 | J20: =IFERROR(INDEX(tblTarefas[Percentual],13),"") -> 0%
C21: =IFERROR(INDEX(tblTarefas[Projeto],14),"") -> PRJ-03 | D21: =IFERROR(INDEX(tblTarefas[Título],14),"") -> Terraplanagem | E21: =IFERROR(INDEX(tblTarefas[Responsável],14),"") -> Diego Ferreira | F21: =IFERROR(INDEX(tblTarefas[Status],14),"") -> Concluída | G21: =IFERROR(INDEX(tblTarefas[Data Início],14),"") -> 2025-11-10 | H21: =IFERROR(INDEX(tblTarefas[Data Prevista],14),"") -> 2025-12-19 | I21: =IFERROR(INDEX(tblTarefas[Dias Previstos],14),"") -> 40 | J21: =IFERROR(INDEX(tblTarefas[Percentual],14),"") -> 100%
C22: =IFERROR(INDEX(tblTarefas[Projeto],15),"") -> PRJ-03 | D22: =IFERROR(INDEX(tblTarefas[Título],15),"") -> Fundação | E22: =IFERROR(INDEX(tblTarefas[Responsável],15),"") -> Diego Ferreira | F22: =IFERROR(INDEX(tblTarefas[Status],15),"") -> Concluída | G22: =IFERROR(INDEX(tblTarefas[Data Início],15),"") -> 2026-01-05 | H22: =IFERROR(INDEX(tblTarefas[Data Prevista],15),"") -> 2026-02-27 | I22: =IFERROR(INDEX(tblTarefas[Dias Previstos],15),"") -> 54 | J22: =IFERROR(INDEX(tblTarefas[Percentual],15),"") -> 100%
C23: =IFERROR(INDEX(tblTarefas[Projeto],16),"") -> PRJ-03 | D23: =IFERROR(INDEX(tblTarefas[Título],16),"") -> Estrutura metálica | E23: =IFERROR(INDEX(tblTarefas[Responsável],16),"") -> Diego Ferreira | F23: =IFERROR(INDEX(tblTarefas[Status],16),"") -> Em andamento | G23: =IFERROR(INDEX(tblTarefas[Data Início],16),"") -> 2026-03-09 | H23: =IFERROR(INDEX(tblTarefas[Data Prevista],16),"") -> 2026-05-29 | I23: =IFERROR(INDEX(tblTarefas[Dias Previstos],16),"") -> 82 | J23: =IFERROR(INDEX(tblTarefas[Percentual],16),"") -> 73%
C24: =IFERROR(INDEX(tblTarefas[Projeto],17),"") -> PRJ-03 | D24: =IFERROR(INDEX(tblTarefas[Título],17),"") -> Cobertura | E24: =IFERROR(INDEX(tblTarefas[Responsável],17),"") -> Diego Ferreira | F24: =IFERROR(INDEX(tblTarefas[Status],17),"") -> Não iniciada | G24: =IFERROR(INDEX(tblTarefas[Data Início],17),"") -> 2026-06-01 | H24: =IFERROR(INDEX(tblTarefas[Data Prevista],17),"") -> 2026-06-19 | I24: =IFERROR(INDEX(tblTarefas[Dias Previstos],17),"") -> 19 | J24: =IFERROR(INDEX(tblTarefas[Percentual],17),"") -> 0%
C25: =IFERROR(INDEX(tblTarefas[Projeto],18),"") -> PRJ-03 | D25: =IFERROR(INDEX(tblTarefas[Título],18),"") -> Acabamentos e vistoria | E25: =IFERROR(INDEX(tblTarefas[Responsável],18),"") -> Diego Ferreira | F25: =IFERROR(INDEX(tblTarefas[Status],18),"") -> Não iniciada | G25: =IFERROR(INDEX(tblTarefas[Data Início],18),"") -> 2026-06-22 | H25: =IFERROR(INDEX(tblTarefas[Data Prevista],18),"") -> 2026-06-30 | I25: =IFERROR(INDEX(tblTarefas[Dias Previstos],18),"") -> 9 | J25: =IFERROR(INDEX(tblTarefas[Percentual],18),"") -> 0%
C26: =IFERROR(INDEX(tblTarefas[Projeto],19),"") -> PRJ-04 | D26: =IFERROR(INDEX(tblTarefas[Título],19),"") -> Diagnóstico orçamentário | E26: =IFERROR(INDEX(tblTarefas[Responsável],19),"") -> Eduarda Pires | F26: =IFERROR(INDEX(tblTarefas[Status],19),"") -> Concluída | G26: =IFERROR(INDEX(tblTarefas[Data Início],19),"") -> 2026-01-15 | H26: =IFERROR(INDEX(tblTarefas[Data Prevista],19),"") -> 2026-02-13 | I26: =IFERROR(INDEX(tblTarefas[Dias Previstos],19),"") -> 30 | J26: =IFERROR(INDEX(tblTarefas[Percentual],19),"") -> 100%
C27: =IFERROR(INDEX(tblTarefas[Projeto],20),"") -> PRJ-04 | D27: =IFERROR(INDEX(tblTarefas[Título],20),"") -> Redesenho do orçamento | E27: =IFERROR(INDEX(tblTarefas[Responsável],20),"") -> Eduarda Pires | F27: =IFERROR(INDEX(tblTarefas[Status],20),"") -> Concluída | G27: =IFERROR(INDEX(tblTarefas[Data Início],20),"") -> 2026-02-16 | H27: =IFERROR(INDEX(tblTarefas[Data Prevista],20),"") -> 2026-03-31 | I27: =IFERROR(INDEX(tblTarefas[Dias Previstos],20),"") -> 44 | J27: =IFERROR(INDEX(tblTarefas[Percentual],20),"") -> 100%
C28: =IFERROR(INDEX(tblTarefas[Projeto],21),"") -> PRJ-04 | D28: =IFERROR(INDEX(tblTarefas[Título],21),"") -> Aprovação da diretoria | E28: =IFERROR(INDEX(tblTarefas[Responsável],21),"") -> Ana Beatriz Costa | F28: =IFERROR(INDEX(tblTarefas[Status],21),"") -> Concluída | G28: =IFERROR(INDEX(tblTarefas[Data Início],21),"") -> 2026-04-01 | H28: =IFERROR(INDEX(tblTarefas[Data Prevista],21),"") -> 2026-04-28 | I28: =IFERROR(INDEX(tblTarefas[Dias Previstos],21),"") -> 28 | J28: =IFERROR(INDEX(tblTarefas[Percentual],21),"") -> 100%
C29: =IFERROR(INDEX(tblTarefas[Projeto],22),"") -> PRJ-05 | D29: =IFERROR(INDEX(tblTarefas[Título],22),"") -> Levantar necessidades de treinamento | E29: =IFERROR(INDEX(tblTarefas[Responsável],22),"") -> Gabriela Rocha | F29: =IFERROR(INDEX(tblTarefas[Status],22),"") -> Pausada | G29: =IFERROR(INDEX(tblTarefas[Data Início],22),"") -> 2026-03-02 | H29: =IFERROR(INDEX(tblTarefas[Data Prevista],22),"") -> 2026-03-27 | I29: =IFERROR(INDEX(tblTarefas[Dias Previstos],22),"") -> 26 | J29: =IFERROR(INDEX(tblTarefas[Percentual],22),"") -> 50%
C30: =IFERROR(INDEX(tblTarefas[Projeto],23),"") -> PRJ-05 | D30: =IFERROR(INDEX(tblTarefas[Título],23),"") -> Definir trilhas de aprendizagem | E30: =IFERROR(INDEX(tblTarefas[Responsável],23),"") -> Gabriela Rocha | F30: =IFERROR(INDEX(tblTarefas[Status],23),"") -> Não iniciada | G30: =IFERROR(INDEX(tblTarefas[Data Início],23),"") -> 2026-03-30 | H30: =IFERROR(INDEX(tblTarefas[Data Prevista],23),"") -> 2026-04-10 | I30: =IFERROR(INDEX(tblTarefas[Dias Previstos],23),"") -> 12 | J30: =IFERROR(INDEX(tblTarefas[Percentual],23),"") -> 0%
C31: =IFERROR(INDEX(tblTarefas[Projeto],24),"") -> PRJ-06 | D31: =IFERROR(INDEX(tblTarefas[Título],24),"") -> Levantar escopo do portal | E31: =IFERROR(INDEX(tblTarefas[Responsável],24),"") -> Felipe Andrade | F31: =IFERROR(INDEX(tblTarefas[Status],24),"") -> Não iniciada | G31: =IFERROR(INDEX(tblTarefas[Data Início],24),"") -> 2026-06-01 | H31: =IFERROR(INDEX(tblTarefas[Data Prevista],24),"") -> 2026-06-30 | I31: =IFERROR(INDEX(tblTarefas[Dias Previstos],24),"") -> 30 | J31: =IFERROR(INDEX(tblTarefas[Percentual],24),"") -> 0%
C32: =IFERROR(INDEX(tblTarefas[Projeto],25),"") -> PRJ-06 | D32: =IFERROR(INDEX(tblTarefas[Título],25),"") -> Prototipar interface | E32: =IFERROR(INDEX(tblTarefas[Responsável],25),"") -> Carla Nogueira | F32: =IFERROR(INDEX(tblTarefas[Status],25),"") -> Não iniciada | G32: =IFERROR(INDEX(tblTarefas[Data Início],25),"") -> 2026-07-01 | H32: =IFERROR(INDEX(tblTarefas[Data Prevista],25),"") -> 2026-07-31 | I32: =IFERROR(INDEX(tblTarefas[Dias Previstos],25),"") -> 31 | J32: =IFERROR(INDEX(tblTarefas[Percentual],25),"") -> 0%
C33: =IFERROR(INDEX(tblTarefas[Projeto],26),"") -> PRJ-06 | D33: =IFERROR(INDEX(tblTarefas[Título],26),"") -> Definir arquitetura técnica | E33: =IFERROR(INDEX(tblTarefas[Responsável],26),"") -> Felipe Andrade | F33: =IFERROR(INDEX(tblTarefas[Status],26),"") -> Não iniciada | G33: =IFERROR(INDEX(tblTarefas[Data Início],26),"") -> 2026-07-01 | H33: =IFERROR(INDEX(tblTarefas[Data Prevista],26),"") -> 2026-08-14 | I33: =IFERROR(INDEX(tblTarefas[Dias Previstos],26),"") -> 45 | J33: =IFERROR(INDEX(tblTarefas[Percentual],26),"") -> 0%
C35: LEGENDA:
D36: Concluído
D37: Atrasado
D38: Prazo próximo (7 dias)
D39: Em andamento
D40: Não iniciado
D41: Hoje

Sheet 12 - Relatórios (hidden)
C6: RELATÓRIOS
C8: R1 — PROJETOS POR STATUS | F8: R2 — PROJETOS POR CLIENTE | I8: R3 — PROJETOS POR CATEGORIA | L8: R4 — PROJETOS POR RESPONSÁVEL
C9: Row Labels | D9: Projetos | F9: Row Labels | G9: Projetos | I9: Row Labels | J9: Projetos | L9: Row Labels | M9: Projetos
C10: Concluído | D10: 1 | F10: Alfa Indústria | G10: 2 | I10: Construção | J10: 1 | L10: Bruno Martins | M10: 1
C11: Em andamento | D11: 3 | F11: Beta Varejo | G11: 1 | I11: Desenvolvimento | J11: 1 | L11: Carla Nogueira | M11: 1
C12: Pausado | D12: 1 | F12: Delta Serviços | G12: 1 | I12: Financeiro | J12: 1 | L12: Diego Ferreira | M12: 1
C13: Planejamento | D13: 1 | F13: Épsilon Saúde | G13: 1 | I13: Marketing | J13: 1 | L13: Eduarda Pires | M13: 1
C14: Grand Total | D14: 6 | F14: Gama Construtora | G14: 1 | I14: RH | J14: 1 | L14: Felipe Andrade | M14: 1
F15: Grand Total | G15: 6 | I15: TI | J15: 1 | L15: Gabriela Rocha | M15: 1
I16: Grand Total | J16: 6 | L16: Grand Total | M16: 6
C22: R5 — HORAS POR FUNCIONÁRIO | F22: R6 — HORAS POR PROJETO | I22: R7 — CUSTOS POR PROJETO | N22: R8 — TAREFAS POR PROJETO E STATUS
C23: Row Labels | D23: Horas | F23: Row Labels | G23: Horas | I23: Row Labels | J23: Previsto | K23: Realizado | N23: Tarefas | O23: Column Labels
C24: Ana Beatriz Costa | D24: 36.00 | F24: PRJ-01 | G24: 460.00 | I24: PRJ-01 | J24: R$ 680,000 | K24: R$ 617,800 | N24: Row Labels | O24: Aguardando | P24: Concluída | Q24: Em andamento | R24: Não iniciada | S24: Pausada | T24: Grand Total
C25: Bruno Martins | D25: 320.00 | F25: PRJ-02 | G25: 304.00 | I25: PRJ-02 | J25: R$ 240,000 | K25: R$ 198,000 | N25: PRJ-01 | P25: 2 | Q25: 2 | R25: 3 | T25: 7
C26: Carla Nogueira | D26: 304.00 | F26: PRJ-03 | G26: 1045.00 | I26: PRJ-03 | J26: R$ 2,200,000 | K26: R$ 1,918,500 | N26: PRJ-02 | O26: 1 | P26: 2 | Q26: 2 | R26: 1 | T26: 6
C27: Diego Ferreira | D27: 1045.00 | F27: PRJ-04 | G27: 230.00 | I27: PRJ-04 | J27: R$ 210,000 | K27: R$ 206,400 | N27: PRJ-03 | P27: 2 | Q27: 1 | R27: 2 | T27: 5
C28: Eduarda Pires | D28: 334.00 | F28: PRJ-05 | G28: 30.00 | I28: PRJ-05 | J28: R$ 60,000 | K28: R$ 12,000 | N28: PRJ-04 | P28: 3 | T28: 3
C29: Gabriela Rocha | D29: 30.00 | F29: Grand Total | G29: 2069.00 | I29: PRJ-06 | J29: R$ 320,000 | K29: 0 | N29: PRJ-05 | R29: 1 | S29: 1 | T29: 2
C30: Grand Total | D30: 2069.00 | I30: Grand Total | J30: R$ 3,710,000 | K30: R$ 2,952,700 | N30: PRJ-06 | R30: 3 | T30: 3
N31: Grand Total | O31: 1 | P31: 9 | Q31: 5 | R31: 10 | S31: 1 | T31: 26
C40: R9 — PRODUTIVIDADE POR RESPONSÁVEL | H40: R10 — TEMPO MÉDIO DE CONCLUSÃO | M40: R11 — TAREFAS POR PRIORIDADE E STATUS
C41: Row Labels | D41: Tarefas | E41: Horas | F41: % Médio | H41: Row Labels | I41: Média Dias Previstos | J41: Média Dias Utilizados | M41: Tarefas | N41: Column Labels
C42: Ana Beatriz Costa | D42: 1 | E42: 36.00 | F42: 100.0% | H42: PRJ-01 | I42: 41 | J42: 61 | M42: Row Labels | N42: Aguardando | O42: Concluída | P42: Em andamento | Q42: Não iniciada | R42: Pausada | S42: Grand Total
C43: Bruno Martins | D43: 4 | E43: 320.00 | F43: 62.5% | H43: PRJ-02 | I43: 40 | J43: 66 | M43: Alta | O43: 6 | P43: 2 | Q43: 4 | S43: 12
C44: Carla Nogueira | D44: 5 | E44: 304.00 | F44: 65.0% | H44: PRJ-03 | I44: 41 | J44: 71 | M44: Baixa | R44: 1 | S44: 1
C45: Diego Ferreira | D45: 5 | E45: 1,045.00 | F45: 54.6% | H45: PRJ-04 | I45: 34 | J45: 32 | M45: Crítica | O45: 1 | P45: 2 | Q45: 2 | S45: 5
C46: Eduarda Pires | D46: 3 | E46: 334.00 | F46: 95.8% | H46: PRJ-05 | I46: 19 | J46: 141 | M46: Média | N46: 1 | O46: 2 | P46: 1 | Q46: 4 | S46: 8
C47: Felipe Andrade | D47: 3 | E47: 0.00 | F47: 0.0% | H47: PRJ-06 | I47: 35 | J47: 44 | M47: Grand Total | N47: 1 | O47: 9 | P47: 5 | Q47: 10 | R47: 1 | S47: 26
C48: Gabriela Rocha | D48: 3 | E48: 30.00 | F48: 16.7% | H48: Grand Total | I48: 38 | J48: 65
C49: Henrique Dias | D49: 2 | E49: 0.00 | F49: 0.0%
C50: Grand Total | D50: 26 | E50: 2,069.00 | F50: 49.4%
C56: R12 — MARCOS POR PROJETO E STATUS
C57: Marcos | D57: Column Labels
C58: Row Labels | D58: Concluído | E58: Em andamento | F58: Não iniciado | G58: Pausado | H58: Grand Total
C59: PRJ-01 | D59: 1 | E59: 1 | F59: 1 | H59: 3
C60: PRJ-02 | D60: 1 | E60: 1 | F60: 1 | H60: 3
C61: PRJ-03 | D61: 1 | E61: 1 | F61: 1 | H61: 3
C62: PRJ-04 | D62: 1 | H62: 1
C63: PRJ-05 | G63: 1 | H63: 1
C64: PRJ-06 | F64: 1 | H64: 1
C65: Grand Total | D65: 4 | E65: 3 | F65: 4 | G65: 1 | H65: 12

Sheet 13 - Cálculos (hidden)
C6: ABA DE CÁLCULOS — NÃO EDITAR
C7: Nenhum usuário deve editar esta aba. Todos os indicadores são calculados automaticamente. | G7: BASE — PROJETOS POR STATUS | J7: BASE — POR RESPONSÁVEL | P7: BASE — POR PROJETO | Y7: BASE — POR CLIENTE | AB7: BASE — POR CATEGORIA | AE7: BASE — EVOLUÇÃO DE ENTREGAS | AI7: BASE — GRÁFICOS COMPARATIVOS | AP7: LISTAS DE VALIDAÇÃO
C8: BLOCO 1 — KPIs DE PROJETOS | E8: Indicador utilizado no Dashboard | G8: Status | H8: Qtde | J8: Responsável | K8: Tarefas | L8: Concluídas | M8: Atrasadas | N8: Horas Realizadas | P8: ID | Q8: Projeto | R8: % Concluído | S8: Horas Previstas | T8: Horas Realizadas | U8: Custo Previsto | V8: Custo Realizado | W8: Dias Restantes | Y8: Cliente | Z8: Projetos | AB8: Categoria | AC8: Projetos | AE8: Mês | AF8: Tarefas Concluídas | AG8: Horas Realizadas | AI8: Projeto | AJ8: Horas Previstas | AK8: Horas Realizadas | AL8: Projeto | AM8: Custo Previsto | AN8: Custo Realizado | AP8: Status Projeto | AQ8: Status Tarefa | AR8: Prioridade | AS8: Tipo Financeiro | AT8: Status Marco
C9: Total de projetos | D9: =COUNTA(tblProjetos[ID Projeto]) -> 6 | E9: Contagem de registros | G9: Planejamento | H9: =COUNTIFS(tblProjetos[Status],$G9) -> 1 | J9: =IFERROR(INDEX(tblEquipe[Nome],1),"") -> Ana Beatriz Costa | K9: =IF($J9="","",COUNTIFS(tblTarefas[Responsável],$J9)) -> 1 | L9: =IF($J9="","",COUNTIFS(tblTarefas[Responsável],$J9,tblTarefas[Status],"Concluída")) -> 1 | M9: =IF($J9="","",SUMPRODUCT((tblTarefas[Responsável]=$J9)*(tblTarefas[Status]<>"Concluída")*(tblTarefas[Status]<>"Cancelada")*(tblTarefas[Data Prevista]<TODAY()))) -> 0 | N9: =IF($J9="","",SUMIFS(tblHoras[Horas Trabalhadas],tblHoras[Funcionário],$J9)) -> 36 | P9: =IFERROR(INDEX(tblProjetos[ID Projeto],1),"") -> PRJ-01 | Q9: =IF($P9="","",INDEX(tblProjetos[Nome Projeto],MATCH($P9,tblProjetos[ID Projeto],0))) -> Implantação ERP Corporativo | R9: =IF($P9="","",INDEX(tblProjetos[Percentual Concluído],MATCH($P9,tblProjetos[ID Projeto],0))) -> 48.2% | S9: =IF($P9="","",SUMIFS(tblTarefas[Horas Previstas],tblTarefas[Projeto],$P9)) -> 960 | T9: =IF($P9="","",SUMIFS(tblHoras[Horas Trabalhadas],tblHoras[Projeto],$P9)) -> 460 | U9: =IF($P9="","",INDEX(tblProjetos[Orçamento Previsto],MATCH($P9,tblProjetos[ID Projeto],0))) -> R$ 480,000 | V9: =IF($P9="","",INDEX(tblProjetos[Custo Atual],MATCH($P9,tblProjetos[ID Projeto],0))) -> R$ 417,800 | W9: =IF($P9="","",INDEX(tblProjetos[Data Final Prevista],MATCH($P9,tblProjetos[ID Projeto],0))-TODAY()) -> 48 | Y9: =IFERROR(INDEX(tblClientes[Empresa],1),"") -> Alfa Indústria | Z9: =IF($Y9="","",COUNTIFS(tblProjetos[Cliente],$Y9)) -> 2 | AB9: =IFERROR(INDEX(tblCategorias[Categoria],1),"") -> Marketing | AC9: =IF($AB9="","",COUNTIFS(tblProjetos[Categoria],$AB9)) -> 1 | AE9: 2026-01-01 | AF9: =COUNTIFS(tblTarefas[Data Conclusão],">="&$AE9,tblTarefas[Data Conclusão],"<"&EDATE($AE9,1)) -> 1 | AG9: =SUMIFS(tblHoras[Horas Trabalhadas],tblHoras[Data],">="&$AE9,tblHoras[Data],"<"&EDATE($AE9,1)) -> 363.5 | AI9: =$Q9 -> Implantação ERP Corporativo | AJ9: =$S9 -> 960 | AK9: =$T9 -> 460 | AL9: =$Q9 -> Implantação ERP Corporativo | AM9: =$U9 -> R$ 480,000 | AN9: =$V9 -> R$ 417,800 | AP9: Planejamento | AQ9: Não iniciada | AR9: Baixa | AS9: Receita | AT9: Não iniciado
C10: Projetos em planejamento | D10: =COUNTIFS(tblProjetos[Status],"Planejamento") -> 1 | G10: Em andamento | H10: =COUNTIFS(tblProjetos[Status],$G10) -> 3 | J10: =IFERROR(INDEX(tblEquipe[Nome],2),"") -> Bruno Martins | K10: =IF($J10="","",COUNTIFS(tblTarefas[Responsável],$J10)) -> 4 | L10: =IF($J10="","",COUNTIFS(tblTarefas[Responsável],$J10,tblTarefas[Status],"Concluída")) -> 2 | M10: =IF($J10="","",SUMPRODUCT((tblTarefas[Responsável]=$J10)*(tblTarefas[Status]<>"Concluída")*(tblTarefas[Status]<>"Cancelada")*(tblTarefas[Data Prevista]<TODAY()))) -> 1 | N10: =IF($J10="","",SUMIFS(tblHoras[Horas Trabalhadas],tblHoras[Funcionário],$J10)) -> 320 | P10: =IFERROR(INDEX(tblProjetos[ID Projeto],2),"") -> PRJ-02 | Q10: =IF($P10="","",INDEX(tblProjetos[Nome Projeto],MATCH($P10,tblProjetos[ID Projeto],0))) -> Campanha Institucional 2026 | R10: =IF($P10="","",INDEX(tblProjetos[Percentual Concluído],MATCH($P10,tblProjetos[ID Projeto],0))) -> 54.2% | S10: =IF($P10="","",SUMIFS(tblTarefas[Horas Previstas],tblTarefas[Projeto],$P10)) -> 520 | T10: =IF($P10="","",SUMIFS(tblHoras[Horas Trabalhadas],tblHoras[Projeto],$P10)) -> 304 | U10: =IF($P10="","",INDEX(tblProjetos[Orçamento Previsto],MATCH($P10,tblProjetos[ID Projeto],0))) -> R$ 150,000 | V10: =IF($P10="","",INDEX(tblProjetos[Custo Atual],MATCH($P10,tblProjetos[ID Projeto],0))) -> R$ 108,000 | W10: =IF($P10="","",INDEX(tblProjetos[Data Final Prevista],MATCH($P10,tblProjetos[ID Projeto],0))-TODAY()) -> -13 | Y10: =IFERROR(INDEX(tblClientes[Empresa],2),"") -> Beta Varejo | Z10: =IF($Y10="","",COUNTIFS(tblProjetos[Cliente],$Y10)) -> 1 | AB10: =IFERROR(INDEX(tblCategorias[Categoria],2),"") -> TI | AC10: =IF($AB10="","",COUNTIFS(tblProjetos[Categoria],$AB10)) -> 1 | AE10: 2026-02-01 | AF10: =COUNTIFS(tblTarefas[Data Conclusão],">="&$AE10,tblTarefas[Data Conclusão],"<"&EDATE($AE10,1)) -> 3 | AG10: =SUMIFS(tblHoras[Horas Trabalhadas],tblHoras[Data],">="&$AE10,tblHoras[Data],"<"&EDATE($AE10,1)) -> 254.5 | AI10: Campanha Institucional 2026 | AJ10: 520 | AK10: 304 | AL10: Campanha Institucional 2026 | AM10: R$ 150,000 | AN10: R$ 108,000 | AP10: Em andamento | AQ10: Em andamento | AR10: Média | AS10: Despesa | AT10: Em andamento
C11: Projetos em andamento | D11: =COUNTIFS(tblProjetos[Status],"Em andamento") -> 3 | G11: Pausado | H11: =COUNTIFS(tblProjetos[Status],$G11) -> 1 | J11: =IFERROR(INDEX(tblEquipe[Nome],3),"") -> Carla Nogueira | K11: =IF($J11="","",COUNTIFS(tblTarefas[Responsável],$J11)) -> 5 | L11: =IF($J11="","",COUNTIFS(tblTarefas[Responsável],$J11,tblTarefas[Status],"Concluída")) -> 2 | M11: =IF($J11="","",SUMPRODUCT((tblTarefas[Responsável]=$J11)*(tblTarefas[Status]<>"Concluída")*(tblTarefas[Status]<>"Cancelada")*(tblTarefas[Data Prevista]<TODAY()))) -> 3 | N11: =IF($J11="","",SUMIFS(tblHoras[Horas Trabalhadas],tblHoras[Funcionário],$J11)) -> 304 | P11: =IFERROR(INDEX(tblProjetos[ID Projeto],3),"") -> PRJ-03 | Q11: =IF($P11="","",INDEX(tblProjetos[Nome Projeto],MATCH($P11,tblProjetos[ID Projeto],0))) -> Obra Centro de Distribuição | R11: =IF($P11="","",INDEX(tblProjetos[Percentual Concluído],MATCH($P11,tblProjetos[ID Projeto],0))) -> 54.6% | S11: =IF($P11="","",SUMIFS(tblTarefas[Horas Previstas],tblTarefas[Projeto],$P11)) -> 1460 | T11: =IF($P11="","",SUMIFS(tblHoras[Horas Trabalhadas],tblHoras[Projeto],$P11)) -> 1045 | U11: =IF($P11="","",INDEX(tblProjetos[Orçamento Previsto],MATCH($P11,tblProjetos[ID Projeto],0))) -> R$ 2,200,000 | V11: =IF($P11="","",INDEX(tblProjetos[Custo Atual],MATCH($P11,tblProjetos[ID Projeto],0))) -> R$ 1,918,500 | W11: =IF($P11="","",INDEX(tblProjetos[Data Final Prevista],MATCH($P11,tblProjetos[ID Projeto],0))-TODAY()) -> -44 | Y11: =IFERROR(INDEX(tblClientes[Empresa],3),"") -> Gama Construtora | Z11: =IF($Y11="","",COUNTIFS(tblProjetos[Cliente],$Y11)) -> 1 | AB11: =IFERROR(INDEX(tblCategorias[Categoria],3),"") -> Construção | AC11: =IF($AB11="","",COUNTIFS(tblProjetos[Categoria],$AB11)) -> 1 | AE11: 2026-03-01 | AF11: =COUNTIFS(tblTarefas[Data Conclusão],">="&$AE11,tblTarefas[Data Conclusão],"<"&EDATE($AE11,1)) -> 3 | AG11: =SUMIFS(tblHoras[Horas Trabalhadas],tblHoras[Data],">="&$AE11,tblHoras[Data],"<"&EDATE($AE11,1)) -> 234.5 | AI11: Obra Centro de Distribuição | AJ11: 1460 | AK11: 1045 | AL11: Obra Centro de Distribuição | AM11: R$ 2,200,000 | AN11: R$ 1,918,500 | AP11: Pausado | AQ11: Concluída | AR11: Alta | AS11: Investimento | AT11: Concluído
C12: Projetos pausados | D12: =COUNTIFS(tblProjetos[Status],"Pausado") -> 1 | G12: Concluído | H12: =COUNTIFS(tblProjetos[Status],$G12) -> 1 | J12: =IFERROR(INDEX(tblEquipe[Nome],4),"") -> Diego Ferreira | K12: =IF($J12="","",COUNTIFS(tblTarefas[Responsável],$J12)) -> 5 | L12: =IF($J12="","",COUNTIFS(tblTarefas[Responsável],$J12,tblTarefas[Status],"Concluída")) -> 2 | M12: =IF($J12="","",SUMPRODUCT((tblTarefas[Responsável]=$J12)*(tblTarefas[Status]<>"Concluída")*(tblTarefas[Status]<>"Cancelada")*(tblTarefas[Data Prevista]<TODAY()))) -> 3 | N12: =IF($J12="","",SUMIFS(tblHoras[Horas Trabalhadas],tblHoras[Funcionário],$J12)) -> 1045 | P12: =IFERROR(INDEX(tblProjetos[ID Projeto],4),"") -> PRJ-04 | Q12: =IF($P12="","",INDEX(tblProjetos[Nome Projeto],MATCH($P12,tblProjetos[ID Projeto],0))) -> Reestruturação Orçamentária | R12: =IF($P12="","",INDEX(tblProjetos[Percentual Concluído],MATCH($P12,tblProjetos[ID Projeto],0))) -> 100.0% | S12: =IF($P12="","",SUMIFS(tblTarefas[Horas Previstas],tblTarefas[Projeto],$P12)) -> 250 | T12: =IF($P12="","",SUMIFS(tblHoras[Horas Trabalhadas],tblHoras[Projeto],$P12)) -> 230 | U12: =IF($P12="","",INDEX(tblProjetos[Orçamento Previsto],MATCH($P12,tblProjetos[ID Projeto],0))) -> R$ 90,000 | V12: =IF($P12="","",INDEX(tblProjetos[Custo Atual],MATCH($P12,tblProjetos[ID Projeto],0))) -> R$ 86,400 | W12: =IF($P12="","",INDEX(tblProjetos[Data Final Prevista],MATCH($P12,tblProjetos[ID Projeto],0))-TODAY()) -> -105 | Y12: =IFERROR(INDEX(tblClientes[Empresa],4),"") -> Delta Serviços | Z12: =IF($Y12="","",COUNTIFS(tblProjetos[Cliente],$Y12)) -> 1 | AB12: =IFERROR(INDEX(tblCategorias[Categoria],4),"") -> Financeiro | AC12: =IF($AB12="","",COUNTIFS(tblProjetos[Categoria],$AB12)) -> 1 | AE12: 2026-04-01 | AF12: =COUNTIFS(tblTarefas[Data Conclusão],">="&$AE12,tblTarefas[Data Conclusão],"<"&EDATE($AE12,1)) -> 1 | AG12: =SUMIFS(tblHoras[Horas Trabalhadas],tblHoras[Data],">="&$AE12,tblHoras[Data],"<"&EDATE($AE12,1)) -> 520 | AI12: Reestruturação Orçamentária | AJ12: 250 | AK12: 230 | AL12: Reestruturação Orçamentária | AM12: R$ 90,000 | AN12: R$ 86,400 | AP12: Concluído | AQ12: Pausada | AR12: Crítica | AT12: Pausado
C13: Projetos concluídos | D13: =COUNTIFS(tblProjetos[Status],"Concluído") -> 1 | G13: Cancelado | H13: =COUNTIFS(tblProjetos[Status],$G13) -> 0 | J13: =IFERROR(INDEX(tblEquipe[Nome],5),"") -> Eduarda Pires | K13: =IF($J13="","",COUNTIFS(tblTarefas[Responsável],$J13)) -> 3 | L13: =IF($J13="","",COUNTIFS(tblTarefas[Responsável],$J13,tblTarefas[Status],"Concluída")) -> 2 | M13: =IF($J13="","",SUMPRODUCT((tblTarefas[Responsável]=$J13)*(tblTarefas[Status]<>"Concluída")*(tblTarefas[Status]<>"Cancelada")*(tblTarefas[Data Prevista]<TODAY()))) -> 1 | N13: =IF($J13="","",SUMIFS(tblHoras[Horas Trabalhadas],tblHoras[Funcionário],$J13)) -> 334 | P13: =IFERROR(INDEX(tblProjetos[ID Projeto],5),"") -> PRJ-05 | Q13: =IF($P13="","",INDEX(tblProjetos[Nome Projeto],MATCH($P13,tblProjetos[ID Projeto],0))) -> Programa de Treinamento Interno | R13: =IF($P13="","",INDEX(tblProjetos[Percentual Concluído],MATCH($P13,tblProjetos[ID Projeto],0))) -> 25.0% | S13: =IF($P13="","",SUMIFS(tblTarefas[Horas Previstas],tblTarefas[Projeto],$P13)) -> 110 | T13: =IF($P13="","",SUMIFS(tblHoras[Horas Trabalhadas],tblHoras[Projeto],$P13)) -> 30 | U13: =IF($P13="","",INDEX(tblProjetos[Orçamento Previsto],MATCH($P13,tblProjetos[ID Projeto],0))) -> R$ 60,000 | V13: =IF($P13="","",INDEX(tblProjetos[Custo Atual],MATCH($P13,tblProjetos[ID Projeto],0))) -> R$ 12,000 | W13: =IF($P13="","",INDEX(tblProjetos[Data Final Prevista],MATCH($P13,tblProjetos[ID Projeto],0))-TODAY()) -> -74 | Y13: =IFERROR(INDEX(tblClientes[Empresa],5),"") -> Épsilon Saúde | Z13: =IF($Y13="","",COUNTIFS(tblProjetos[Cliente],$Y13)) -> 1 | AB13: =IFERROR(INDEX(tblCategorias[Categoria],5),"") -> RH | AC13: =IF($AB13="","",COUNTIFS(tblProjetos[Categoria],$AB13)) -> 1 | AE13: 2026-05-01 | AF13: =COUNTIFS(tblTarefas[Data Conclusão],">="&$AE13,tblTarefas[Data Conclusão],"<"&EDATE($AE13,1)) -> 0 | AG13: =SUMIFS(tblHoras[Horas Trabalhadas],tblHoras[Data],">="&$AE13,tblHoras[Data],"<"&EDATE($AE13,1)) -> 669 | AI13: Programa de Treinamento Interno | AJ13: 110 | AK13: 30 | AL13: Programa de Treinamento Interno | AM13: R$ 60,000 | AN13: R$ 12,000 | AP13: Cancelado | AQ13: Cancelada | AT13: Cancelado
C14: Projetos cancelados | D14: =COUNTIFS(tblProjetos[Status],"Cancelado") -> 0 | J14: =IFERROR(INDEX(tblEquipe[Nome],6),"") -> Felipe Andrade | K14: =IF($J14="","",COUNTIFS(tblTarefas[Responsável],$J14)) -> 3 | L14: =IF($J14="","",COUNTIFS(tblTarefas[Responsável],$J14,tblTarefas[Status],"Concluída")) -> 0 | M14: =IF($J14="","",SUMPRODUCT((tblTarefas[Responsável]=$J14)*(tblTarefas[Status]<>"Concluída")*(tblTarefas[Status]<>"Cancelada")*(tblTarefas[Data Prevista]<TODAY()))) -> 2 | N14: =IF($J14="","",SUMIFS(tblHoras[Horas Trabalhadas],tblHoras[Funcionário],$J14)) -> 0 | P14: =IFERROR(INDEX(tblProjetos[ID Projeto],6),"") -> PRJ-06 | Q14: =IF($P14="","",INDEX(tblProjetos[Nome Projeto],MATCH($P14,tblProjetos[ID Projeto],0))) -> Portal de Autoatendimento | R14: =IF($P14="","",INDEX(tblProjetos[Percentual Concluído],MATCH($P14,tblProjetos[ID Projeto],0))) -> 0.0% | S14: =IF($P14="","",SUMIFS(tblTarefas[Horas Previstas],tblTarefas[Projeto],$P14)) -> 300 | T14: =IF($P14="","",SUMIFS(tblHoras[Horas Trabalhadas],tblHoras[Projeto],$P14)) -> 0 | U14: =IF($P14="","",INDEX(tblProjetos[Orçamento Previsto],MATCH($P14,tblProjetos[ID Projeto],0))) -> R$ 320,000 | V14: =IF($P14="","",INDEX(tblProjetos[Custo Atual],MATCH($P14,tblProjetos[ID Projeto],0))) -> 0 | W14: =IF($P14="","",INDEX(tblProjetos[Data Final Prevista],MATCH($P14,tblProjetos[ID Projeto],0))-TODAY()) -> 140 | AB14: =IFERROR(INDEX(tblCategorias[Categoria],6),"") -> Comercial | AC14: =IF($AB14="","",COUNTIFS(tblProjetos[Categoria],$AB14)) -> 0 | AE14: 2026-06-01 | AF14: =COUNTIFS(tblTarefas[Data Conclusão],">="&$AE14,tblTarefas[Data Conclusão],"<"&EDATE($AE14,1)) -> 0 | AG14: =SUMIFS(tblHoras[Horas Trabalhadas],tblHoras[Data],">="&$AE14,tblHoras[Data],"<"&EDATE($AE14,1)) -> 27.5 | AI14: Portal de Autoatendimento | AJ14: 300 | AK14: 0 | AL14: Portal de Autoatendimento | AM14: R$ 320,000 | AN14: 0 | AQ14: Aguardando
C15: Projetos ativos | D15: =D10+D11+D12 -> 5 | E15: Planejamento + Em andamento + Pausado | G15: BASE — TAREFAS POR STATUS | J15: =IFERROR(INDEX(tblEquipe[Nome],7),"") -> Gabriela Rocha | K15: =IF($J15="","",COUNTIFS(tblTarefas[Responsável],$J15)) -> 3 | L15: =IF($J15="","",COUNTIFS(tblTarefas[Responsável],$J15,tblTarefas[Status],"Concluída")) -> 0 | M15: =IF($J15="","",SUMPRODUCT((tblTarefas[Responsável]=$J15)*(tblTarefas[Status]<>"Concluída")*(tblTarefas[Status]<>"Cancelada")*(tblTarefas[Data Prevista]<TODAY()))) -> 2 | N15: =IF($J15="","",SUMIFS(tblHoras[Horas Trabalhadas],tblHoras[Funcionário],$J15)) -> 30 | AB15: =IFERROR(INDEX(tblCategorias[Categoria],7),"") -> Pesquisa | AC15: =IF($AB15="","",COUNTIFS(tblProjetos[Categoria],$AB15)) -> 0 | AE15: 2026-07-01 | AF15: =COUNTIFS(tblTarefas[Data Conclusão],">="&$AE15,tblTarefas[Data Conclusão],"<"&EDATE($AE15,1)) -> 0 | AG15: =SUMIFS(tblHoras[Horas Trabalhadas],tblHoras[Data],">="&$AE15,tblHoras[Data],"<"&EDATE($AE15,1)) -> 0
C16: Projetos atrasados | D16: =SUMPRODUCT((tblProjetos[Status]<>"Concluído")*(tblProjetos[Status]<>"Cancelado")*(tblProjetos[Data Final Prevista]<TODAY())) -> 3 | E16: Prazo vencido e não concluído | G16: Status | H16: Qtde | J16: =IFERROR(INDEX(tblEquipe[Nome],8),"") -> Henrique Dias | K16: =IF($J16="","",COUNTIFS(tblTarefas[Responsável],$J16)) -> 2 | L16: =IF($J16="","",COUNTIFS(tblTarefas[Responsável],$J16,tblTarefas[Status],"Concluída")) -> 0 | M16: =IF($J16="","",SUMPRODUCT((tblTarefas[Responsável]=$J16)*(tblTarefas[Status]<>"Concluída")*(tblTarefas[Status]<>"Cancelada")*(tblTarefas[Data Prevista]<TODAY()))) -> 2 | N16: =IF($J16="","",SUMIFS(tblHoras[Horas Trabalhadas],tblHoras[Funcionário],$J16)) -> 0 | AB16: =IFERROR(INDEX(tblCategorias[Categoria],8),"") -> Desenvolvimento | AC16: =IF($AB16="","",COUNTIFS(tblProjetos[Categoria],$AB16)) -> 1 | AE16: 2026-08-01 | AF16: =COUNTIFS(tblTarefas[Data Conclusão],">="&$AE16,tblTarefas[Data Conclusão],"<"&EDATE($AE16,1)) -> 0 | AG16: =SUMIFS(tblHoras[Horas Trabalhadas],tblHoras[Data],">="&$AE16,tblHoras[Data],"<"&EDATE($AE16,1)) -> 0
C17: Projetos concluídos no prazo | D17: =SUMPRODUCT((tblProjetos[Status]="Concluído")*(tblProjetos[Data Final Real]<=tblProjetos[Data Final Prevista])) -> 1 | G17: Não iniciada | H17: =COUNTIFS(tblTarefas[Status],$G17) -> 10 | AE17: 2026-09-01 | AF17: =COUNTIFS(tblTarefas[Data Conclusão],">="&$AE17,tblTarefas[Data Conclusão],"<"&EDATE($AE17,1)) -> 0 | AG17: =SUMIFS(tblHoras[Horas Trabalhadas],tblHoras[Data],">="&$AE17,tblHoras[Data],"<"&EDATE($AE17,1)) -> 0
C18: Projetos concluídos com atraso | D18: =SUMPRODUCT((tblProjetos[Status]="Concluído")*(tblProjetos[Data Final Real]>tblProjetos[Data Final Prevista])) -> 0 | G18: Em andamento | H18: =COUNTIFS(tblTarefas[Status],$G18) -> 5 | AE18: 2026-10-01 | AF18: =COUNTIFS(tblTarefas[Data Conclusão],">="&$AE18,tblTarefas[Data Conclusão],"<"&EDATE($AE18,1)) -> 0 | AG18: =SUMIFS(tblHoras[Horas Trabalhadas],tblHoras[Data],">="&$AE18,tblHoras[Data],"<"&EDATE($AE18,1)) -> 0
C19: Projetos em risco | D19: =SUMPRODUCT((tblProjetos[Status]="Em andamento")*(tblProjetos[Data Final Prevista]-TODAY()<=30)*(tblProjetos[Data Final Prevista]>=TODAY())*(tblProjetos[Percentual Concluído]<0.8)) -> 0 | E19: Prazo próximo e baixo progresso | G19: Concluída | H19: =COUNTIFS(tblTarefas[Status],$G19) -> 9 | AE19: 2026-11-01 | AF19: =COUNTIFS(tblTarefas[Data Conclusão],">="&$AE19,tblTarefas[Data Conclusão],"<"&EDATE($AE19,1)) -> 0 | AG19: =SUMIFS(tblHoras[Horas Trabalhadas],tblHoras[Data],">="&$AE19,tblHoras[Data],"<"&EDATE($AE19,1)) -> 0
C20: % médio de conclusão dos projetos | D20: =IFERROR(AVERAGE(tblProjetos[Percentual Concluído]),0) -> 47.0% | G20: Pausada | H20: =COUNTIFS(tblTarefas[Status],$G20) -> 1 | AE20: 2026-12-01 | AF20: =COUNTIFS(tblTarefas[Data Conclusão],">="&$AE20,tblTarefas[Data Conclusão],"<"&EDATE($AE20,1)) -> 0 | AG20: =SUMIFS(tblHoras[Horas Trabalhadas],tblHoras[Data],">="&$AE20,tblHoras[Data],"<"&EDATE($AE20,1)) -> 0
G21: Cancelada | H21: =COUNTIFS(tblTarefas[Status],$G21) -> 0
C22: BLOCO 2 — KPIs DE TAREFAS | G22: Aguardando | H22: =COUNTIFS(tblTarefas[Status],$G22) -> 1
C23: Total de tarefas | D23: =COUNTA(tblTarefas[ID]) -> 26
C24: Tarefas não iniciadas | D24: =COUNTIFS(tblTarefas[Status],"Não iniciada") -> 10 | G24: BASE — TAREFAS POR PRIORIDADE
C25: Tarefas em andamento | D25: =COUNTIFS(tblTarefas[Status],"Em andamento") -> 5 | G25: Prioridade | H25: Qtde
C26: Tarefas concluídas | D26: =COUNTIFS(tblTarefas[Status],"Concluída") -> 9 | G26: Baixa | H26: =COUNTIFS(tblTarefas[Prioridade],$G26) -> 1
C27: Tarefas pausadas | D27: =COUNTIFS(tblTarefas[Status],"Pausada") -> 1 | G27: Média | H27: =COUNTIFS(tblTarefas[Prioridade],$G27) -> 8
C28: Tarefas aguardando | D28: =COUNTIFS(tblTarefas[Status],"Aguardando") -> 1 | G28: Alta | H28: =COUNTIFS(tblTarefas[Prioridade],$G28) -> 12
C29: Tarefas canceladas | D29: =COUNTIFS(tblTarefas[Status],"Cancelada") -> 0 | G29: Crítica | H29: =COUNTIFS(tblTarefas[Prioridade],$G29) -> 5
C30: Tarefas pendentes | D30: =D24+D27+D28 -> 12 | E30: Não iniciadas + pausadas + aguardando
C31: Tarefas atrasadas | D31: =SUMPRODUCT((tblTarefas[Status]<>"Concluída")*(tblTarefas[Status]<>"Cancelada")*(tblTarefas[Data Prevista]<TODAY())) -> 14
C32: Tarefas críticas abertas | D32: =COUNTIFS(tblTarefas[Prioridade],"Crítica",tblTarefas[Status],"<>Concluída",tblTarefas[Status],"<>Cancelada") -> 4
C33: % de tarefas atrasadas | D33: =IFERROR(D31/D23,0) -> 53.8%
C34: % médio de conclusão das tarefas | D34: =IFERROR(AVERAGE(tblTarefas[Percentual]),0) -> 49.4%
C35: Duração média das tarefas (dias) | D35: =IFERROR(AVERAGE(tblTarefas[Dias Previstos]),0) -> 37.5
C36: Tempo médio de conclusão (dias) | D36: =IFERROR(AVERAGEIFS(tblTarefas[Dias Utilizados],tblTarefas[Status],"Concluída"),0) -> 30.11111111
C38: BLOCO 3 — HORAS, CUSTOS E DESVIOS
C39: Horas previstas (total) | D39: =SUM(tblTarefas[Horas Previstas]) -> 3600.00
C40: Horas realizadas (total) | D40: =SUM(tblHoras[Horas Trabalhadas]) -> 2069.00
C41: % de horas utilizadas | D41: =IFERROR(D40/D39,0) -> 57.5%
C42: Desvio de horas | D42: =D40-D39 -> -1531 | E42: Positivo = estouro
C43: Orçamento previsto (total) | D43: =SUM(tblProjetos[Orçamento Previsto]) -> R$ 3,300,000
C44: Custo realizado (total) | D44: =SUM(tblProjetos[Custo Atual]) -> R$ 2,542,700
C45: % do orçamento consumido | D45: =IFERROR(D44/D43,0) -> 77.1%
C46: Desvio financeiro | D46: =D44-D43 -> (R$ 757,300) | E46: Positivo = estouro
C47: Índice de eficiência financeira | D47: =IFERROR(D43/D44,0) -> 1.297833012 | E47: Previsto ÷ Realizado — acima de 1 é bom
C48: Receita total realizada | D48: =SUMIFS(tblFinanceiro[Valor Real],tblFinanceiro[Tipo],"Receita") -> R$ 410,000
C49: Despesa total realizada | D49: =SUMIFS(tblFinanceiro[Valor Real],tblFinanceiro[Tipo],"Despesa") -> R$ 1,479,700
C50: Investimento total realizado | D50: =SUMIFS(tblFinanceiro[Valor Real],tblFinanceiro[Tipo],"Investimento") -> R$ 1,063,000
C51: Desvio médio de prazo (dias) | D51: =IFERROR(AVERAGEIFS(tblTarefas[Dias Utilizados],tblTarefas[Status],"Concluída")-AVERAGEIFS(tblTarefas[Dias Previstos],tblTarefas[Status],"Concluída"),0) -> -0.1111111111 | E51: Realizado − previsto
C52: Índice de cumprimento de cronograma | D52: =IFERROR((D23-D31)/D23,0) -> 46.2% | E52: Tarefas em dia ÷ total
C54: BLOCO 4 — PRODUTIVIDADE
C55: Colaboradores ativos | D55: =COUNTIFS(tblEquipe[Status],"Ativo") -> 7
C56: Tarefas concluídas por colaborador | D56: =IFERROR(D26/D55,0) -> 1.285714286 | E56: Índice de produtividade
C57: Horas médias por lançamento | D57: =IFERROR(AVERAGE(tblHoras[Horas Trabalhadas]),0) -> 34.48333333
C58: Total de marcos | D58: =COUNTA(tblMarcos[ID]) -> 12
C59: Marcos concluídos | D59: =COUNTIFS(tblMarcos[Status],"Concluído") -> 4
C60: Marcos atrasados | D60: =SUMPRODUCT((tblMarcos[Status]<>"Concluído")*(tblMarcos[Data Prevista]<TODAY())) -> 0
C61: % de marcos concluídos | D61: =IFERROR(D59/D58,0) -> 33.3%
